{"text_format":"1","workbook":"xlsx","n_sheets":5,"sheets":["Cerere de Finantare","Anexa 1","Anexa 2","Anexa 3","Asociati"],"not_rendered":{"charts":0,"images":1,"macros":1,"external_links":0,"defined_names":1,"comments":0,"pivot_tables":0},"unopened":[],"bounds":{"document_bytes":16777216,"sheet_cells":100000,"rows_first":2000,"rows_last":500,"rows_between":2000,"halvings":0,"cell_chars":16384,"cell_head_chars":4096},"cells_cut":0,"cells_raw":0,"read":"whole","date_system":"1900"}

{"sheet":"Cerere de Finantare","index":0,"n_rows":660,"n_cols":59,"rows_kept":660,"cut":false,"hidden":false,"merged":[[304,52,304,60],[595,0,595,50],[595,51,595,60],[600,51,600,59],[604,51,604,60],[450,4,450,41],[450,42,450,50],[450,51,450,60],[658,0,658,12],[656,43,656,46],[656,47,656,56],[632,0,632,2],[632,3,632,6],[632,8,632,9],[632,10,632,12],[632,19,632,20],[632,21,632,23],[632,25,632,28],[632,30,632,36],[632,38,632,45],[632,47,632,56],[634,0,634,10],[634,11,634,21],[634,23,634,25],[634,26,634,36],[634,38,634,42],[634,43,634,59],[650,21,650,52],[623,0,623,14],[624,0,624,14],[626,0,626,14],[628,0,628,4],[583,51,583,60],[584,0,584,1],[449,4,449,41],[449,42,449,50],[449,51,449,60],[448,0,448,3],[448,4,448,41],[448,42,448,50],[580,41,580,50],[580,51,580,60],[574,51,574,60],[575,0,575,1],[576,0,576,1],[474,50,474,54],[474,55,474,60],[477,0,477,29],[465,30,465,34],[465,35,465,41],[465,42,465,49],[465,50,465,54],[465,55,465,60],[466,30,466,49],[466,50,466,60],[470,0,470,29],[470,30,470,34],[470,35,470,41],[455,0,455,29],[505,0,505,29],[447,42,447,50],[447,0,447,3],[447,4,447,41],[447,51,447,60],[450,0,450,3],[571,41,571,50],[127,41,127,43],[127,45,127,47],[127,49,127,51],[127,53,127,55],[451,0,451,3],[451,4,451,41],[451,42,451,60],[454,0,454,44],[339,0,339,3],[339,4,339,41],[339,42,339,50],[339,51,339,60],[342,0,342,3],[342,4,342,41],[342,42,342,50],[342,51,342,60],[341,0,341,3],[341,4,341,41],[341,42,341,50],[341,51,341,60],[356,4,356,41],[355,0,355,3],[355,4,355,41],[355,42,355,50],[355,51,355,60],[449,0,449,3],[357,4,357,41],[439,0,439,3],[439,4,439,41],[439,42,439,50],[439,51,439,60],[445,4,445,41],[445,42,445,50],[445,51,445,60],[446,0,446,3],[446,4,446,41],[446,42,446,50],[448,51,448,60],[440,0,440,3],[440,4,440,41],[440,42,440,50],[440,51,440,60],[441,0,441,3],[441,4,441,41],[441,42,441,50],[441,51,441,60],[442,0,442,3],[442,4,442,41],[442,42,442,50],[442,51,442,60],[443,0,443,3],[443,4,443,41],[443,42,443,50],[443,51,443,60],[444,0,444,3],[444,4,444,41],[444,42,444,50],[444,51,444,60],[446,51,446,60],[427,51,427,60],[428,0,428,3],[428,4,428,41],[428,42,428,50],[428,51,428,60],[429,0,429,3],[434,0,434,3],[434,4,434,41],[434,42,434,50],[434,51,434,60],[435,0,435,60],[436,0,436,3],[436,4,436,41],[436,42,436,50],[436,51,436,60],[437,0,437,60],[438,0,438,3],[438,4,438,41],[438,42,438,50],[438,51,438,60],[423,42,423,50],[423,51,423,60],[424,0,424,3],[424,4,424,41],[424,42,424,50],[424,51,424,60],[445,0,445,3],[430,0,430,3],[430,4,430,41],[430,42,430,50],[430,51,430,60],[431,0,431,3],[431,4,431,41],[431,42,431,50],[431,51,431,60],[432,0,432,3],[432,4,432,41],[432,42,432,50],[432,51,432,60],[433,0,433,41],[433,42,433,60],[425,0,425,3],[425,4,425,41],[425,42,425,50],[425,51,425,60],[426,0,426,3],[426,4,426,41],[426,42,426,50],[426,51,426,60],[427,0,427,3],[427,4,427,41],[427,42,427,50],[406,0,406,41],[406,42,406,50],[406,51,406,60],[407,0,407,41],[407,42,407,50],[407,51,407,60],[408,0,408,41],[408,42,408,60],[410,0,410,43],[413,7,413,41],[413,42,414,60],[414,7,414,41],[415,7,415,41],[416,7,416,60],[417,0,417,60],[412,7,412,41],[429,4,429,41],[429,42,429,50],[429,51,429,60],[418,0,418,60],[419,0,419,60],[420,0,420,60],[421,0,421,3],[421,4,421,41],[421,42,421,50],[421,51,421,60],[422,0,422,3],[422,4,422,41],[422,42,422,50],[422,51,422,60],[423,0,423,3],[423,4,423,41],[401,0,401,3],[401,4,401,41],[401,42,401,50],[401,51,401,60],[402,0,402,3],[402,4,402,41],[402,42,402,50],[402,51,402,60],[403,0,403,3],[403,4,403,41],[403,42,403,50],[403,51,403,60],[405,0,405,3],[405,4,405,41],[405,42,405,50],[405,51,405,60],[404,0,404,3],[404,4,404,41],[404,42,404,50],[404,51,404,60],[399,0,399,3],[399,4,399,41],[399,42,399,50],[399,51,399,60],[393,0,393,3],[393,4,393,41],[393,42,393,50],[393,51,393,60],[394,0,394,3],[394,4,394,41],[394,42,394,50],[394,51,394,60],[395,0,395,3],[395,4,395,41],[395,42,395,50],[395,51,395,60],[400,0,400,60],[391,0,391,3],[391,4,391,41],[391,42,391,50],[391,51,391,60],[392,0,392,3],[392,4,392,41],[392,42,392,50],[392,51,392,60],[398,0,398,3],[396,0,396,3],[396,4,396,41],[396,42,396,50],[396,51,396,60],[397,0,397,60],[398,4,398,41],[398,42,398,50],[398,51,398,60],[380,7,380,41],[381,7,381,41],[381,42,382,60],[382,7,382,41],[383,7,383,41],[384,7,384,60],[385,0,385,60],[386,0,386,60],[387,0,387,60],[388,0,388,3],[388,4,388,41],[388,42,388,60],[389,0,389,41],[389,42,389,50],[389,51,389,60],[390,0,390,41],[390,42,390,50],[390,51,390,60],[375,0,375,3],[375,4,375,41],[375,42,375,50],[375,51,375,60],[373,0,373,3],[373,4,373,41],[373,42,373,50],[373,51,373,60],[374,0,374,3],[374,4,374,41],[374,42,374,50],[374,51,374,60],[376,0,376,3],[376,4,376,41],[376,42,376,50],[376,51,376,60],[377,0,377,41],[377,42,377,60],[369,0,369,3],[369,4,369,41],[369,42,369,50],[369,51,369,60],[370,0,370,3],[370,4,370,41],[370,42,370,50],[370,51,370,60],[371,0,371,3],[371,4,371,41],[371,42,371,50],[371,51,371,60],[372,0,372,3],[372,4,372,41],[372,42,372,50],[372,51,372,60],[362,0,362,3],[362,4,362,41],[362,42,362,50],[362,51,362,60],[367,4,367,41],[367,42,367,50],[367,51,367,60],[368,0,368,3],[368,4,368,41],[368,42,368,50],[368,51,368,60],[363,4,363,41],[363,42,363,50],[363,51,363,60],[364,0,364,3],[364,4,364,41],[364,42,364,50],[364,51,364,60],[365,0,365,3],[365,4,365,41],[365,42,365,50],[365,51,365,60],[366,0,366,3],[366,4,366,41],[366,42,366,50],[366,51,366,60],[367,0,367,3],[363,0,363,3],[320,44,320,51],[334,7,334,60],[335,0,335,60],[328,0,328,34],[328,35,328,43],[328,44,328,60],[336,0,336,60],[337,0,337,60],[361,0,361,3],[361,4,361,41],[361,42,361,50],[361,51,361,60],[360,0,360,3],[360,4,360,41],[360,42,360,50],[360,51,360,60],[353,4,353,41],[354,0,354,3],[358,4,358,41],[358,0,358,3],[313,52,313,60],[323,44,323,51],[323,52,323,60],[325,0,325,34],[325,35,325,43],[325,44,325,51],[351,0,351,3],[351,4,351,41],[351,42,351,50],[351,51,351,60],[352,0,352,3],[352,4,352,41],[352,42,352,50],[340,4,340,41],[340,42,340,50],[347,0,347,3],[347,4,347,41],[347,42,347,50],[347,51,347,60],[348,0,348,3],[348,4,348,41],[348,42,348,50],[348,51,348,60],[320,52,320,60],[321,0,321,34],[321,35,321,43],[321,44,321,51],[326,0,326,34],[326,35,326,43],[326,44,326,51],[326,52,326,60],[327,0,327,31],[311,44,311,51],[311,52,311,60],[312,0,312,34],[312,35,312,43],[312,44,312,51],[312,52,312,60],[306,0,306,34],[306,35,306,43],[306,44,306,51],[306,52,306,60],[354,4,354,41],[353,0,353,3],[353,42,353,50],[353,51,353,60],[354,42,354,50],[354,51,354,60],[338,0,338,3],[338,4,338,41],[338,42,338,50],[329,0,329,30],[329,35,329,43],[329,44,329,60],[330,7,330,41],[320,0,320,34],[310,0,310,34],[310,35,310,43],[310,44,310,51],[310,52,310,60],[340,0,340,3],[313,0,313,34],[313,35,313,43],[313,44,313,51],[593,41,593,50],[593,51,593,60],[582,41,582,50],[238,56,239,59],[242,56,243,59],[253,1,253,10],[253,12,253,17],[630,25,630,37],[630,39,630,42],[630,44,630,59],[578,41,578,50],[622,15,622,59],[624,15,624,59],[616,0,616,60],[617,0,617,60],[618,0,618,60],[619,0,619,60],[620,0,620,60],[621,0,621,60],[622,0,622,14],[592,0,592,1],[352,51,352,60],[317,0,317,34],[317,35,317,43],[317,44,317,51],[317,52,317,60],[318,0,318,34],[318,35,318,43],[318,44,318,51],[318,52,318,60],[319,0,319,34],[319,35,319,43],[245,42,245,48],[245,49,245,55],[246,14,246,18],[246,19,246,41],[246,42,246,48],[246,49,246,55],[307,0,307,34],[307,35,307,43],[307,44,307,51],[307,52,307,60],[308,0,308,34],[308,35,308,43],[308,44,308,51],[308,52,308,60],[309,0,309,17],[309,35,309,60],[305,0,305,34],[305,35,305,43],[286,0,286,34],[286,35,286,43],[286,44,286,51],[286,52,286,60],[287,0,287,34],[295,44,295,51],[295,52,295,60],[296,0,296,34],[253,47,253,56],[255,0,255,34],[255,35,255,43],[255,44,255,51],[303,35,303,43],[303,44,303,51],[573,0,573,40],[573,41,573,50],[578,0,578,40],[27,1,27,45],[27,48,27,59],[28,48,28,59],[86,33,86,43],[87,33,87,43],[123,1,123,41],[299,44,299,51],[299,52,299,60],[300,0,300,34],[300,35,300,43],[300,44,300,51],[300,52,300,60],[301,0,301,34],[305,44,305,51],[305,52,305,60],[338,51,338,60],[290,0,290,34],[290,35,290,43],[74,1,78,13],[66,1,70,13],[259,0,259,34],[259,35,259,43],[259,44,259,51],[259,52,259,60],[260,0,260,34],[260,35,260,43],[260,44,260,51],[257,0,257,34],[247,4,247,40],[659,0,659,7],[646,12,646,59],[648,12,648,59],[642,0,642,51],[642,52,642,59],[644,0,644,5],[644,6,644,59],[652,0,652,3],[652,4,652,14],[652,15,652,59],[654,0,654,60],[656,0,656,10],[656,12,656,27],[658,13,658,34],[628,33,628,37],[628,38,628,57],[630,0,630,4],[630,5,630,18],[630,21,630,23],[636,0,636,38],[636,40,636,59],[638,0,638,5],[640,0,640,19],[640,20,640,30],[638,6,638,30],[632,16,632,17],[632,14,632,15],[628,5,628,12],[628,14,628,17],[628,18,628,31],[592,2,592,40],[592,41,592,50],[592,51,592,60],[586,0,586,1],[586,2,586,40],[586,41,586,50],[586,51,586,60],[587,0,587,1],[587,2,587,40],[587,41,587,50],[587,51,587,60],[588,0,588,60],[589,0,589,40],[589,41,589,50],[584,41,584,50],[584,51,584,60],[585,0,585,1],[585,41,585,50],[585,51,585,60],[567,0,567,60],[568,51,568,60],[568,41,568,50],[568,0,568,40],[283,44,283,51],[569,0,569,1],[570,0,570,1],[563,0,563,16],[563,17,563,49],[563,50,563,60],[564,17,564,49],[569,41,569,50],[569,51,569,60],[570,41,570,50],[570,51,570,60],[296,52,296,60],[298,35,298,43],[298,44,298,51],[298,52,298,60],[299,0,299,34],[299,35,299,43],[287,35,287,43],[287,44,287,51],[287,52,287,60],[288,0,288,34],[288,35,288,43],[297,0,297,34],[297,35,297,43],[297,44,297,51],[303,52,303,60],[319,44,319,51],[319,52,319,60],[240,1,240,13],[241,1,241,13],[242,1,242,13],[243,1,243,13],[244,1,244,13],[245,1,245,13],[240,14,240,18],[243,14,243,18],[245,14,245,18],[240,56,240,59],[241,56,241,59],[244,56,246,59],[243,19,243,41],[243,42,243,48],[243,49,243,55],[244,14,244,18],[244,19,244,41],[244,42,244,48],[244,49,244,55],[240,19,240,41],[240,42,240,48],[240,49,240,55],[241,14,241,18],[241,19,241,41],[241,42,241,48],[241,49,241,55],[242,14,242,18],[242,19,242,41],[246,1,246,13],[242,42,242,48],[242,49,242,55],[245,19,245,41],[230,0,230,60],[186,1,186,13],[186,20,186,32],[203,0,228,60],[231,2,231,60],[232,2,232,60],[236,1,237,13],[236,14,236,55],[236,56,237,59],[237,14,237,18],[237,19,237,41],[237,42,237,48],[237,49,237,55],[238,1,238,13],[238,14,238,18],[238,19,238,41],[238,42,238,48],[238,49,238,55],[187,20,187,32],[239,1,239,13],[239,14,239,18],[239,19,239,41],[239,42,239,48],[239,49,239,55],[181,1,181,37],[182,1,182,19],[182,22,182,39],[182,42,182,58],[183,1,183,19],[183,22,183,39],[183,42,183,58],[147,28,147,35],[148,28,149,35],[185,1,185,6],[185,8,185,34],[185,36,185,39],[196,2,196,56],[197,2,197,56],[199,2,199,27],[199,31,199,56],[200,2,200,27],[200,31,200,56],[189,1,189,23],[186,38,186,50],[187,38,187,50],[191,0,191,60],[193,2,193,27],[193,31,193,56],[194,31,194,56],[194,2,194,27],[187,1,187,13],[140,0,140,60],[141,1,141,32],[131,1,131,58],[132,1,132,58],[134,3,135,13],[134,14,135,24],[134,25,135,35],[134,36,135,46],[134,47,134,57],[135,47,135,57],[147,37,147,48],[148,37,149,48],[147,51,147,58],[148,51,149,58],[143,3,143,10],[144,3,144,16],[143,24,143,49],[147,4,147,15],[148,4,148,6],[148,7,148,9],[148,10,148,15],[149,4,149,6],[149,7,149,9],[149,10,149,15],[147,18,147,20],[147,21,147,26],[148,21,149,26],[148,18,149,20],[144,24,144,49],[116,21,116,22],[129,11,129,19],[129,21,129,29],[124,1,124,19],[124,22,124,39],[124,42,124,58],[125,1,125,19],[125,22,125,39],[125,42,125,58],[128,36,128,58],[129,36,129,58],[129,1,129,9],[137,4,137,13],[137,16,137,23],[137,26,137,34],[136,47,138,57],[137,36,137,46],[116,2,116,3],[116,4,116,5],[116,6,116,7],[116,8,116,9],[116,13,116,14],[116,15,116,16],[116,17,116,18],[116,23,116,24],[116,25,116,26],[116,27,116,28],[116,33,116,34],[116,35,116,36],[116,37,116,38],[116,43,116,44],[116,45,116,46],[89,41,89,45],[89,24,89,26],[89,35,89,39],[89,28,89,33],[91,1,91,22],[101,1,101,18],[91,41,91,48],[91,51,91,58],[90,33,90,43],[93,2,95,28],[95,40,95,59],[95,30,95,38],[93,40,93,59],[98,2,100,28],[98,40,98,59],[110,2,110,14],[110,19,110,39],[110,43,110,58],[105,0,105,60],[109,43,109,58],[106,0,106,60],[107,1,107,18],[108,1,109,15],[108,19,108,39],[109,19,109,39],[108,43,108,58],[96,2,96,12],[96,13,96,23],[96,24,96,28],[100,30,100,38],[100,40,100,59],[0,6,0,60],[1,6,1,60],[7,0,7,34],[8,0,8,34],[10,7,10,34],[6,36,6,60],[3,42,3,60],[12,0,12,5],[12,7,13,7],[12,9,13,9],[12,10,13,10],[12,12,13,12],[5,0,6,34],[5,36,5,60],[13,0,13,5],[12,21,13,21],[15,9,15,11],[7,36,8,60],[13,36,21,60],[12,22,13,22],[12,23,13,23],[12,25,13,25],[12,27,13,27],[12,28,13,28],[18,0,18,7],[15,30,15,34],[16,30,16,34],[17,30,17,34],[14,6,14,8],[15,6,15,8],[16,6,16,8],[14,9,14,11],[68,15,68,25],[68,27,68,37],[68,39,68,48],[68,50,68,58],[82,1,82,22],[76,27,76,37],[76,39,76,48],[76,50,76,58],[76,15,76,25],[86,28,86,30],[58,1,62,13],[18,9,18,20],[19,0,19,21],[20,0,20,7],[21,0,21,21],[31,1,31,16],[40,50,40,58],[38,27,38,40],[38,41,38,59],[36,2,36,19],[37,0,37,15],[38,0,38,12],[38,13,38,25],[40,1,40,13],[40,15,40,25],[40,27,40,37],[40,39,40,48],[52,15,52,25],[52,27,52,37],[33,1,33,22],[25,1,25,7],[29,1,29,15],[10,36,10,60],[11,36,12,60],[15,20,15,23],[16,20,16,23],[17,20,17,23],[14,15,14,18],[15,15,15,18],[12,13,13,13],[12,15,13,15],[12,16,13,16],[12,17,13,17],[12,18,13,18],[12,20,13,20],[12,30,13,30],[12,31,13,31],[12,32,13,32],[12,33,13,33],[12,34,13,34],[14,30,14,34],[14,20,14,23],[14,12,14,14],[15,12,15,14],[14,27,14,28],[15,27,15,28],[14,24,14,26],[15,24,15,26],[16,12,16,14],[22,0,22,16],[23,0,23,60],[25,10,25,60],[26,10,26,60],[52,39,52,48],[44,15,44,25],[44,27,44,37],[44,39,44,48],[44,50,44,58],[60,15,60,25],[60,27,60,37],[60,39,60,48],[60,50,60,58],[52,50,52,58],[50,1,54,13],[42,1,46,13],[30,1,30,59],[32,1,32,59],[34,1,34,59],[24,0,24,59],[255,52,255,60],[256,0,256,34],[256,35,256,43],[256,44,256,51],[256,52,256,60],[253,20,253,24],[253,26,253,31],[253,33,253,45],[257,35,257,43],[257,44,257,51],[257,52,257,60],[258,0,258,34],[258,35,258,43],[258,44,258,51],[258,52,258,60],[260,52,260,60],[261,0,261,34],[261,35,261,43],[261,44,261,51],[261,52,261,60],[262,0,262,34],[262,35,262,43],[262,44,262,51],[262,52,262,60],[264,0,264,34],[264,35,264,43],[264,44,264,51],[264,52,264,60],[265,0,265,34],[268,35,268,43],[268,44,268,51],[268,52,268,60],[263,0,263,34],[263,35,263,43],[263,44,263,51],[263,52,263,60],[476,35,476,41],[476,42,476,49],[456,0,456,29],[455,30,456,60],[458,0,458,29],[459,0,459,29],[461,0,461,29],[472,0,472,29],[472,30,472,34],[472,35,472,41],[472,42,472,49],[472,50,472,54],[472,55,472,60],[473,0,473,29],[466,0,466,29],[467,0,467,29],[460,17,460,18],[462,0,463,54],[462,55,462,60],[463,55,463,60],[464,0,464,60],[471,30,471,34],[471,35,471,41],[471,42,471,49],[476,0,476,29],[484,55,484,60],[477,50,477,54],[477,55,477,60],[477,30,477,34],[477,35,477,41],[477,42,477,49],[476,30,476,34],[480,0,480,29],[465,0,465,29],[457,30,460,60],[460,0,460,16],[474,0,474,29],[474,30,474,34],[474,35,474,41],[475,0,475,29],[475,30,475,34],[468,0,468,29],[468,30,468,34],[468,35,468,41],[468,42,468,49],[468,50,468,54],[468,55,468,60],[469,0,469,29],[485,55,485,60],[486,50,486,54],[486,55,486,60],[482,55,482,60],[483,50,483,54],[483,55,483,60],[482,50,482,54],[479,55,479,60],[481,0,481,29],[481,30,481,34],[481,50,481,54],[481,55,481,60],[478,0,478,29],[478,30,478,34],[478,35,478,41],[478,42,478,49],[478,50,478,54],[478,55,478,60],[479,0,479,29],[480,55,480,60],[479,50,479,54],[480,50,480,54],[480,42,481,49],[479,30,479,34],[479,35,479,41],[479,42,479,49]],"merged_total":1619,"flags":["merged_cut"]}
[null,null,null,null,null,null,"MINISTERUL AGRICULTURII ŞI DEZVOLTĂRII RURALE"]
[null,null,null,null,null,null,"AGENŢIA PENTRU FINANŢAREA INVESTIŢIILOR RURALE"]
[]
[null,null,null,null,null,null,null,null,null,null,null,null,null,null,null,null,null,null,null,null,null,null,null,null,null,null,null,null,null,null,null,null,null,null,null,null,null,null,null,null,null,null,"SECŢIUNE GENERALĂ"]
[]
["DATE DE ÎNREGISTRARE",null,null,null,null,null,null,null,null,null,null,null,null,null,null,null,null,null,null,null,null,null,null,null,null,null,null,null,null,null,null,null,null,null,null,null,"NUME ŞI PRENUME DIRECTOR GENERAL"]
[null,null,null,null,null,null,null,null,null,null,null,null,null,null,null,null,null,null,null,null,null,null,null,null,null,null,null,null,null,null,null,null,null,null,null,null,"ADJUNCT CRFIR"]
["Se completează de către Agenția pentru Finanțarea Investițiilor Rurale -Centrul"]
["Regional- Programul FEADR 2014-2020"]
[]
["OJFIR/CRFIR",null,null,null,null,null,null,null,null,null,null,null,null,null,null,null,null,null,null,null,null,null,null,null,null,null,null,null,null,null,null,null,null,null,null,null,"Semnătura Director General Adjunct CRFIR"]
[null,null,null,null,null,null,null,null,null,null,null,null,null,null,null,null,null,null,null,null,null,null,null,null,null,null,null,null,null,null,null,null,null,null,null,null,"Ştampila CRFIR"]
["Număr "]
["înregistrare"]
[]
[]
[]
[]
["Data Înregistrării"]
["Numele şi prenumele persoanei care înregistrează"]
["Semnătura:"]
["Data primirii cererii de finanţare la contractare:"]
["Se completează de către solicitant"]
["A PREZENTARE GENERALĂ"]
["Submăsura 19.2 - Sprijin pentru implementarea acțiunilor în cadrul strategiei de dezvoltare locală"]
[null,"A1 Măsura",null,null,null,null,null,null,null,null,"M3/6A-Investiții în activități non-agricole"]
[]
[null,"Conţinutul cadru al documentaţiei tehnico-economice faza SF/DALI conform : "]
[null,null,null,null,null,null,null,null,null,null,null,null,null,null,null,null,null,null,null,null,null,null,null,null,null,null,null,null,null,null,null,null,null,null,null,null,null,null,null,null,null,null,null,null,null,null,null,null,"H.G. nr. 907/2016"]
[null,"A2 Denumire solicitant:"]
[]
[null,"A3 Titlu proiect:"]
[]
[null,"A4 Descrierea succintă a proiectului:"]
[]
[]
[null,null,"A5 Amplasarea proiectului:"]
[]
["Regiunea de dezvoltare:",null,null,null,null,null,null,null,null,null,null,null,null,null,null,null,null,null,null,null,null,null,null,null,null,null,null,"Judeţ/Municipiul Bucureşti:"]
[]
[null,"Obiectivele investiţiei",null,null,null,null,null,null,null,null,null,null,null,null,null,"Judeţ",null,null,null,null,null,null,null,null,null,null,null,"Comună/Oraş",null,null,null,null,null,null,null,null,null,null,null,"Sat/Sector",null,null,null,null,null,null,null,null,null,null,"Sat/Sector"]
[]
[]
[]
[]
[]
[]
[]
[]
[]
[]
[]
[]
[]
[]
[]
[]
[]
[]
[]
[]
[]
[]
[]
[]
[]
[]
[]
[]
[]
[]
[]
[]
[]
[]
[]
[]
[]
[]
[]
[]
[]
[null,"A6 Date despre tipul de proiect şi beneficiar:"]
[]
[null,"A6.0  Tip zona",null,null,null,null,null,null,null,null,null,"Teritoriu GAL Tara Vrancei"]
[]
[null,"A6.1",null,null,null,null,"Proiect cu construcții montaj",null,null,null,null,null,null,null,null,null,null,null,null,null,null,null,null,null,null,null,null,null,"A6.3",null,null,null,null,"Beneficiar privat"]
[null,null,null,null,null,null,"Proiect fără construcții montaj"]
[]
[null,"A6.2",null,null,null,null,"Modernizare și/sau Extindere",null,null,null,null,null,null,null,null,null,null,null,null,null,null,null,null,null,"A6.4",null,null,null,"Prescorare"]
[null,null,null,null,null,null,"Investiție nouă"]
[]
[null,"Denumire consultant: "]
[null,null,null,null,null,null,null,null,null,null,null,null,null,null,null,null,null,null,null,null,null,null,null,null,null,null,null,null,null,null,null,"CUI"]
[]
[null,null,null,null,null,null,null,null,null,null,null,null,null,null,null,null,null,null,null,null,null,null,null,null,null,null,null,null,null,null,"Nr. Inreg. ONRC"]
[]
[null,"Denumire proiectant: "]
[null,null,null,null,null,null,null,null,null,null,null,null,null,null,null,null,null,null,null,null,null,null,null,null,null,null,null,null,null,null,null,"CUI"]
[]
[null,null,null,null,null,null,null,null,null,null,null,null,null,null,null,null,null,null,null,null,null,null,null,null,null,null,null,null,null,null,"Nr. Inreg. ONRC"]
[]
[null,null,null,null,"Proiect tehnic",null,null,null,null,null,null,null,null,null,null,null,"Autorizație",null,null,null,null,null,null,null,null,"Studiu de impact"]
[]
[]
["B INFORMAŢII PRIVIND SOLICITANTUL"]
["B1 Descrierea solicitantului"]
[null,"B1.1 Informaţii privind solicitantul"]
[null,"Data înființării",null,null,null,null,null,null,null,null,null,null,null,null,null,null,null,null,null,"Cod Unic de Înregistrare și/sau Codul de",null,null,null,null,null,null,null,null,null,null,null,null,null,null,null,null,null,null,null,null,null,null,null,"Statut juridic al solicitantului"]
[null,null,null,null,null,null,null,null,null,null,null,null,null,null,null,null,null,null,null,"Înregistrare Fiscală"]
[]
[]
[null,"Număr de înregistrare în registrul comerțului"]
[]
[null,"Codul CAEN al activităţii/activităţilor finanţate prin proiect"]
[]
[]
[]
[null,"Codul unic de înregistrare APIA",null,null,null,null,null,null,null,null,null,null,null,null,null,null,null,null,null,null,null,null,null,null,null,null,null,null,null,null,null,null,null,null,null,null,"Anul atribuirii codului"]
[]
[null,"Codul Registru Național al Exploatațiilor ANSVSA",null,null,null,null,null,null,null,null,null,null,null,null,null,null,null,null,null,null,null,null,null,null,null,null,null,null,null,null,null,null,null,null,null,null,"Anul atribuirii codului"]
[]
[]
[null,"B1.2 Sediul social / Domiciliul stabil al solicitantului / Reşedinţa din România"]
[null,"Judeţ",null,null,null,null,null,null,null,null,null,null,null,null,null,null,null,null,null,null,null,null,"Localitate",null,null,null,null,null,null,null,null,null,null,null,null,null,null,null,null,null,null,null,"Sat"]
[]
[null,"Cod Poştal",null,null,null,null,null,null,"Strada",null,null,null,null,null,null,null,null,null,null,null,null,null,null,null,null,null,null,null,null,null,null,null,null,null,null,null,null,"Nr.",null,null,null,"Bloc",null,null,null,"Scara",null,null,null,"Etaj",null,null,null,"Apartament"]
[]
[null,"Telefon fix",null,null,null,null,null,null,null,null,null,"Telefon mobil",null,null,null,null,null,null,null,null,null,"Fax",null,null,null,null,null,null,null,null,null,null,null,null,null,null,"E-mail"]
[]
[]
[null,"B1.3 Numele şi prenumele reprezentantului legal şi funcţia acestuia în cadrul organizaţiei, precum şi"]
[null,"specimenul de semnatură:"]
[]
[null,null,null,"Numele",null,null,null,null,null,null,null,null,null,null,"Prenumele",null,null,null,null,null,null,null,null,null,null,"Funcţia",null,null,null,null,null,null,null,null,null,null,"Reprezentant legal",null,null,null,null,null,null,null,null,null,null,"Specimen de"]
[null,null,null,null,null,null,null,null,null,null,null,null,null,null,null,null,null,null,null,null,null,null,null,null,null,null,null,null,null,null,null,null,null,null,null,null,null,null,null,null,null,null,null,null,null,null,null,"semnătură"]
[]
[null,null,null,null,null,null,null,null,null,null,null,null,null,null,null,null,null,null,null,null,null,null,null,null,null,null,null,null,null,null,null,null,null,null,null,null,"LEGAL"]
[]
[]
["B2 Informaţii referitoare la reprezentantul legal de proiect"]
[null,"B2.1 Date de identitate ale reprezentantului legal de proiect"]
[]
[null,null,null,"Data naşterii",null,null,null,null,null,null,null,null,null,null,null,null,null,null,null,null,null,null,null,null,"Cod numeric personal"]
[]
[]
[]
[null,null,null,null,"Act de identitate",null,null,null,null,null,null,null,null,null,null,null,null,null,"Seria",null,null,"Nr.",null,null,null,null,null,null,"Eliberat la data de",null,null,null,null,null,null,null,null,"de:",null,null,null,null,null,null,null,null,null,null,null,null,null,"Valabil până la:"]
[null,null,null,null,"B.I.",null,null,"C.I.",null,null,"Paşaport"]
[]
[]
[null,null,null,null,"Asociat unic",null,null,null,null,null,null,null,null,null,null,null,"Asociat majoritar",null,null,null,null,null,null,null,null,null,null,"Administrator"]
[]
[null,"Asociați"]
[null,null,null,null,null,"Persoană Fizică: "]
[null,null,null,"Nume și prenume asociat : "]
[]
[null,null,null,"Data naşterii",null,null,null,null,null,null,null,null,null,null,null,null,null,null,null,null,null,null,null,null,"Cod numeric personal"]
[]
[]
[]
[]
[null,null,null,null,"Act de identitate",null,null,null,null,null,null,null,null,null,null,null,null,null,"Seria",null,null,"Nr.",null,null,null,null,null,null,"Eliberat la data de",null,null,null,null,null,null,null,null,"de:",null,null,null,null,null,null,null,null,null,null,null,null,null,"Valabil până la:"]
[null,null,null,null,"B.I.",null,null,"C.I.",null,null,"Paşaport"]
[]
[]
[null,null,"Adresa și domiciliul asociatului:"]
[null,null,null,"Judeţ",null,null,null,null,null,null,null,null,null,null,null,null,null,null,null,null,null,null,null,null,null,"Localitate",null,null,null,null,null,null,null,null,null,null,null,null,null,null,null,null,null,null,"Sat"]
[]
[null,null,null,"Cod Poştal",null,null,null,null,null,null,null,null,null,"Strada",null,null,null,null,null,null,null,null,null,null,null,null,null,null,null,null,null,"Nr.",null,null,null,null,"Bloc",null,null,null,null,"Scara",null,null,null,null,"Etaj",null,null,null,null,null,"Apartament"]
[]
[null,null,null,null,null,"Persoană Juridică: "]
[]
[null,null,null,null,null,null,null,"Înregistrată în România"]
[null,null,null,null,null,null,null,"Înregistrată în altă țară"]
[]
[null,null,null,"Denumire : "]
[]
[null,null,null,null,"CUI",null,null,null,null,null,null,null,null,null,null,null,null,null,null,"Nr. Inreg. ONRC"]
[]
[]
[null,"B2.2 Domiciliul stabil al reprezentantului legal de proiect"]
[null,"Judeţ",null,null,null,null,null,null,null,null,null,null,null,null,null,null,null,null,null,null,null,null,"Localitate",null,null,null,null,null,null,null,null,null,null,null,null,null,null,null,null,null,null,null,"Sat"]
[]
[null,"Cod Poştal",null,null,null,null,null,null,"Strada",null,null,null,null,null,null,null,null,null,null,null,null,null,null,null,null,null,null,null,null,null,null,null,null,null,null,null,null,"Nr.",null,null,null,"Bloc",null,null,null,"Scara",null,null,null,"Etaj",null,null,null,"Apartament"]
[]
[null,"Telefon fix",null,null,null,null,null,null,null,null,null,null,null,null,null,null,null,null,null,null,"Telefon mobil",null,null,null,null,null,null,null,null,null,null,null,null,null,null,null,null,null,"Fax"]
[]
[null,"E-mail"]
[]
[]
["B3 Informaţii privind contul bancar pentru proiect schema de autor de stat"]
[]
[null,null,"B3.1 Denumirea Băncii",null,null,null,null,null,null,null,null,null,null,null,null,null,null,null,null,null,null,null,null,null,null,null,null,null,null,null,null,"Denumirea Sucursalei/Filialei"]
[]
[]
[null,null,"B3.2 Adresa Băncii/Sucursalei"]
[]
[]
[null,null,"B3.3 Cod IBAN",null,null,null,null,null,null,null,null,null,null,null,null,null,null,null,null,null,null,null,null,null,null,null,null,null,null,null,null,"B3.4 Titularul contului bancar"]
[]
[]
[]
["REGULI DE COMPLETARE\n\nCompletaţi devizele aferente capitolelor de cheltuieli, defalcat pe cheltuieli eligibile şi neeligibile prin completarea tabelelor incluse în acest document, respectiv :\n1. Tabelul \"Deviz financiar_cap3\" cuprinde cheltuielile aferente capitolului 3 - Cheltuieli pentru proiectare şi asistenţă tehnică, cheltuieli care trebuie să se regăsească atât în Bugetul Indicativ (Tabel \"Buget indicativ\" din cererea de finanţare, partea specifică) cât şi în Devizul General din Studiul de Fezabilitate.\n2. Tabelul \"Devize obiect\" cuprinde formatul cadru al devizului pe obiect, iar solicitantul va completa atâtea devize pe obiect câte obiecte de investiţie sunt incluse în proiect. Suma tuturor devizelor pe obiect trebuie să se regăsească atât în Bugetul Indicativ (tabelul \"Buget indicativ\" din cererea de finanţare, partea specifică) cât şi în Devizul General din Studiul de Fezabilitate.\nÎn cazul în care proiectul de investiţii presupune mai multe devize pe obiect, solicitantul va crea în documentul curent câte o copie a tabelului \"Devize obiect\" pentru fiecare deviz pe obiect şi va detalia cheltuielile eligibile şi neeligibile pe fiecare în parte.\n3. Tabelul \"cap.2+cap.5\" cuprinde cheltuieli aferente capitolelor 2 şi 5 şi trebuie să se regăsească atât în Bugetul Indicativ (tabel \"Buget indicativ\" din cererea de finanţare, partea specifică) cât şi Devizul General din Studiul de Fezabilitate.\n4. Câmpul \"Prescorare\" de la secţiunea A6 se autocompletează cu totalul din Grila criterii de selecție.\n5. Pentru indicatorii de tip numeric care nu fac obiectul investitiei sa va completa valoarea zero.\n6. Trebuie bifate si anexate toate documente (1.a, 5, 10, 11 si 18) de pe coloana “DEPUNERE - Obligatoriu pentru toate proiectele” din sectiunea E – Lista documentelor anexate.\n"]
[]
[]
[]
[]
[]
[]
[]
[]
[]
[]
[]
[]
[]
[]
[]
[]
[]
[]
[]
[]
[]
[]
[]
[]
[]
[]
["C FINANȚĂRI NERAMBURSABILE OBȚINUTE, SAU SOLICITATE ?"]
[null,null,"Dacă au fost obținute finanțări nerambursabile sau au fost solicitate și au fost obținute parțial, se vor detalia prin completarea"]
[null,null,"tabelului de mai jos."]
[]
[]
[]
[null,"DENUMIRE PROGRAM FINANȚARE",null,null,null,null,null,null,null,null,null,null,null,null,"DA",null,null,null,null,null,null,null,null,null,null,null,null,null,null,null,null,null,null,null,null,null,null,null,null,null,null,null,null,null,null,null,null,null,null,null,null,null,null,null,null,null,"NU"]
[null,null,null,null,null,null,null,null,null,null,null,null,null,null,"Număr proiecte",null,null,null,null,"Titlul Proiectui și numărul contractului de finanțare ",null,null,null,null,null,null,null,null,null,null,null,null,null,null,null,null,null,null,null,null,null,null,"Data finalizării\nll/zz/aaaa",null,null,null,null,null,null,"Valoarea\nsprijinului\n(EUR)"]
[null,"Program Naţional*"]
[null,"Program Naţional*"]
[null,"FEADR *"]
[null,"SAPARD"]
[null,"Alte programe europene*"]
[null,"Alte programe europene*"]
[null,"Alte programe internaționale*"]
[null,"Alte programe internaționale*"]
[null,"Alte programe internaționale*"]
[null,null,null,null,"* se completează de către solicitant cu denumirea programului"]
[null,"Buget Indicativ - HG 907/2016"]
["MINISTERUL AGRICULTURII ŞI DEZVOLTĂRII RURALE"]
["AGENŢIA PENTRU FINANŢAREA INVESTIŢIILOR RURALE"]
[]
[]
[null,"Procentul aferent intensității",null,null,null,null,null,null,null,null,null,null,null,null,null,null,null,null,null,null,"Curs EURO",null,null,null,null,null,null,null,null,null,null,null,null,"Data întocmirii Studiului de Fezabilitate"]
[]
["Măsura",null,null,null,null,null,null,null,null,null,null,null,null,null,null,null,null,null,null,null,null,null,null,null,null,null,null,null,null,null,null,null,null,null,null,"M3/6A"]
["Denumirea capitolelor de cheltuieli",null,null,null,null,null,null,null,null,null,null,null,null,null,null,null,null,null,null,null,null,null,null,null,null,null,null,null,null,null,null,null,null,null,null,"Cheltuieli eligibile",null,null,null,null,null,null,null,null,"Cheltuieli neeligibile",null,null,null,null,null,null,null,"Total"]
[null,null,null,null,null,null,null,null,null,null,null,null,null,null,null,null,null,null,null,null,null,null,null,null,null,null,null,null,null,null,null,null,null,null,null,"EURO",null,null,null,null,null,null,null,null,"EURO",null,null,null,null,null,null,null,"EURO"]
[1,null,null,null,null,null,null,null,null,null,null,null,null,null,null,null,null,null,null,null,null,null,null,null,null,null,null,null,null,null,null,null,null,null,null,2,null,null,null,null,null,null,null,null,3,null,null,null,null,null,null,null,4]
["Capitolul 1 Cheltuieli pentru obtinerea şi amenajarea terenului - total, din care:",null,null,null,null,null,null,null,null,null,null,null,null,null,null,null,null,null,null,null,null,null,null,null,null,null,null,null,null,null,null,null,null,null,null,{"$f":"SUM(AJ262:AR264)","v":0},null,null,null,null,null,null,null,null,{"$f":"SUM(AS261:AZ264)","v":0},null,null,null,null,null,null,null,{"$f":"SUM(AJ260:AZ260)","v":0}]
["1.1 Obţinerea terenului",null,null,null,null,null,null,null,null,null,null,null,null,null,null,null,null,null,null,null,null,null,null,null,null,null,null,null,null,null,null,null,null,null,null,null,null,null,null,null,null,null,null,null,null,null,null,null,null,null,null,null,{"$f":"SUM(AJ261:AZ261)","v":0}]
["1.2 Amenajarea terenului",null,null,null,null,null,null,null,null,null,null,null,null,null,null,null,null,null,null,null,null,null,null,null,null,null,null,null,null,null,null,null,null,null,null,null,null,null,null,null,null,null,null,null,null,null,null,null,null,null,null,null,0]
["1.3 Amenajari pentru protecţia mediului şi aducerea la starea iniţială",null,null,null,null,null,null,null,null,null,null,null,null,null,null,null,null,null,null,null,null,null,null,null,null,null,null,null,null,null,null,null,null,null,null,null,null,null,null,null,null,null,null,null,null,null,null,null,null,null,null,null,0]
["1.4 Cheltuieli pentru relocarea/protecția utilităților",null,null,null,null,null,null,null,null,null,null,null,null,null,null,null,null,null,null,null,null,null,null,null,null,null,null,null,null,null,null,null,null,null,null,null,null,null,null,null,null,null,null,null,null,null,null,null,null,null,null,null,{"$f":"SUM(AJ264:AZ264)","v":0}]
["Capitolul 2 Cheltuieli pentru asigurarea utilităţilor necesare obiectivului de investiții",null,null,null,null,null,null,null,null,null,null,null,null,null,null,null,null,null,null,null,null,null,null,null,null,null,null,null,null,null,null,null,null,null,null,null,null,null,null,null,null,null,null,null,null,null,null,null,null,null,null,null,0]
["Capitolul 3 Cheltuieli pentru proiectare şi asistenţă tehnică - total, din care:",null,null,null,null,null,null,null,null,null,null,null,null,null,null,null,null,null,null,null,null,null,null,null,null,null,null,null,null,null,null,null,null,null,null,{"$f":"AJ267+AJ271+AJ272+AJ273+AJ274+AJ282+AJ285","v":0},null,null,null,null,null,null,null,null,{"$f":"AS267+AS271+AS272+AS273+AS274+AS281+AS282+AS285","v":0},null,null,null,null,null,null,null,0]
["3.1 Studii",null,null,null,null,null,null,null,null,null,null,null,null,null,null,null,null,null,null,null,null,null,null,null,null,null,null,null,null,null,null,null,null,null,null,{"$f":"SUM(AJ268:AJ270)","v":0},null,null,null,null,null,null,null,null,{"$f":"SUM(AS268:AS270)","v":0},null,null,null,null,null,null,null,{"$f":"SUM(AJ267:AZ267)","v":0}]
["      3.1.1. Studii de teren",null,null,null,null,null,null,null,null,null,null,null,null,null,null,null,null,null,null,null,null,null,null,null,null,null,null,null,null,null,null,null,null,null,null,null,null,null,null,null,null,null,null,null,null,null,null,null,null,null,null,null,0]
["      3.1.2. Raport privind impactul asupra mediului",null,null,null,null,null,null,null,null,null,null,null,null,null,null,null,null,null,null,null,null,null,null,null,null,null,null,null,null,null,null,null,null,null,null,null,null,null,null,null,null,null,null,null,null,null,null,null,null,null,null,null,0]
["      3.1.3. Alte studii specifice",null,null,null,null,null,null,null,null,null,null,null,null,null,null,null,null,null,null,null,null,null,null,null,null,null,null,null,null,null,null,null,null,null,null,null,null,null,null,null,null,null,null,null,null,null,null,null,null,null,null,null,{"$f":"SUM(AJ270:AZ270)","v":0}]
["3.2 Documentații-suport și cheltuieli pentru obţinerea de avize, acorduri şi autorizaţii",null,null,null,null,null,null,null,null,null,null,null,null,null,null,null,null,null,null,null,null,null,null,null,null,null,null,null,null,null,null,null,null,null,null,null,null,null,null,null,null,null,null,null,null,null,null,null,null,null,null,null,0]
["3.3 Expertizare tehnică",null,null,null,null,null,null,null,null,null,null,null,null,null,null,null,null,null,null,null,null,null,null,null,null,null,null,null,null,null,null,null,null,null,null,null,null,null,null,null,null,null,null,null,null,null,null,null,null,null,null,null,0]
["3.4 Certificarea performanţei energetice şi auditul energetic al clădirilor",null,null,null,null,null,null,null,null,null,null,null,null,null,null,null,null,null,null,null,null,null,null,null,null,null,null,null,null,null,null,null,null,null,null,null,null,null,null,null,null,null,null,null,null,null,null,null,null,null,null,null,{"$f":"SUM(AJ273:AZ273)","v":0}]
["3.5 Proiectare",null,null,null,null,null,null,null,null,null,null,null,null,null,null,null,null,null,null,null,null,null,null,null,null,null,null,null,null,null,null,null,null,null,null,{"$f":"SUM(AJ275:AR280)","v":0},null,null,null,null,null,null,null,null,{"$f":"SUM(AS275:AZ280)","v":0},null,null,null,null,null,null,null,0]
["      3.5.1. Temă de proiectare",null,null,null,null,null,null,null,null,null,null,null,null,null,null,null,null,null,null,null,null,null,null,null,null,null,null,null,null,null,null,null,null,null,null,null,null,null,null,null,null,null,null,null,null,null,null,null,null,null,null,null,{"$f":"SUM(AJ275:AZ275)","v":0}]
["      3.5.2. Studiu de prefezabilitate",null,null,null,null,null,null,null,null,null,null,null,null,null,null,null,null,null,null,null,null,null,null,null,null,null,null,null,null,null,null,null,null,null,null,null,null,null,null,null,null,null,null,null,null,null,null,null,null,null,null,null,0]
["      3.5.3. Studiu de prefezabilitate/documentație de avizare a lucrărilor de intervenții și deviz general",null,null,null,null,null,null,null,null,null,null,null,null,null,null,null,null,null,null,null,null,null,null,null,null,null,null,null,null,null,null,null,null,null,null,null,null,null,null,null,null,null,null,null,null,null,null,null,null,null,null,null,0]
["      3.5.4. Documentațiile tehnice necesare în vederea obținerii avizelor/ acordurilor/ autorizațiilor",null,null,null,null,null,null,null,null,null,null,null,null,null,null,null,null,null,null,null,null,null,null,null,null,null,null,null,null,null,null,null,null,null,null,null,null,null,null,null,null,null,null,null,null,null,null,null,null,null,null,null,0]
["      3.5.5. Verificarea tehnică de calitate a proiectului tehnic și a detaliilor de execuție",null,null,null,null,null,null,null,null,null,null,null,null,null,null,null,null,null,null,null,null,null,null,null,null,null,null,null,null,null,null,null,null,null,null,null,null,null,null,null,null,null,null,null,null,null,null,null,null,null,null,null,0]
["      3.5.6. Proiect tehnic și detalii de execuție",null,null,null,null,null,null,null,null,null,null,null,null,null,null,null,null,null,null,null,null,null,null,null,null,null,null,null,null,null,null,null,null,null,null,null,null,null,null,null,null,null,null,null,null,null,null,null,null,null,null,null,0]
["3.6 Organizarea procedurilor de achiziţie",null,null,null,null,null,null,null,null,null,null,null,null,null,null,null,null,null,null,null,null,null,null,null,null,null,null,null,null,null,null,null,null,null,null,null,null,null,null,null,null,null,null,null,null,null,null,null,null,null,null,null,0]
["3.7 Consultanță",null,null,null,null,null,null,null,null,null,null,null,null,null,null,null,null,null,null,null,null,null,null,null,null,null,null,null,null,null,null,null,null,null,null,{"$f":"SUM(AJ283:AR284)","v":0},null,null,null,null,null,null,null,null,{"$f":"SUM(AS283:AZ284)","v":0},null,null,null,null,null,null,null,0]
["      3.7.1. Managementul de proiect pentru obiectivul de investiții",null,null,null,null,null,null,null,null,null,null,null,null,null,null,null,null,null,null,null,null,null,null,null,null,null,null,null,null,null,null,null,null,null,null,null,null,null,null,null,null,null,null,null,null,null,null,null,null,null,null,null,0]
["      3.7.2. Auditul financiar",null,null,null,null,null,null,null,null,null,null,null,null,null,null,null,null,null,null,null,null,null,null,null,null,null,null,null,null,null,null,null,null,null,null,null,null,null,null,null,null,null,null,null,null,null,null,null,null,null,null,null,{"$f":"SUM(AJ284:AZ284)","v":0}]
["3.8 Asistență tehnică",null,null,null,null,null,null,null,null,null,null,null,null,null,null,null,null,null,null,null,null,null,null,null,null,null,null,null,null,null,null,null,null,null,null,{"$f":"AJ289+AJ286","v":0},null,null,null,null,null,null,null,null,{"$f":"AS289+AS286","v":0},null,null,null,null,null,null,null,0]
["     3.8.1. Asistență tehnică din partea proiectantului",null,null,null,null,null,null,null,null,null,null,null,null,null,null,null,null,null,null,null,null,null,null,null,null,null,null,null,null,null,null,null,null,null,null,{"$f":"SUM(AJ287:AR288)","v":0},null,null,null,null,null,null,null,null,{"$f":"SUM(AS287:AZ288)","v":0},null,null,null,null,null,null,null,{"$f":"SUM(AJ286:AZ286)","v":0}]
["             3.8.1.1. pe perioada de execuție a lucrărilor",null,null,null,null,null,null,null,null,null,null,null,null,null,null,null,null,null,null,null,null,null,null,null,null,null,null,null,null,null,null,null,null,null,null,null,null,null,null,null,null,null,null,null,null,null,null,null,null,null,null,null,0]
["             3.8.1.2. pentru participarea proiectantului la fazele incluse în programul de control al lucrărilor de execuţie, avizat de către Inspectoratul de Stat în Construcţii",null,null,null,null,null,null,null,null,null,null,null,null,null,null,null,null,null,null,null,null,null,null,null,null,null,null,null,null,null,null,null,null,null,null,null,null,null,null,null,null,null,null,null,null,null,null,null,null,null,null,null,0]
["      3.8.2. Dirigenție de șantier",null,null,null,null,null,null,null,null,null,null,null,null,null,null,null,null,null,null,null,null,null,null,null,null,null,null,null,null,null,null,null,null,null,null,null,null,null,null,null,null,null,null,null,null,null,null,null,null,null,null,null,0]
["Verificare încadrare cheltuieli capitolul 3",null,null,null,null,null,null,null,null,null,null,null,null,null,null,null,null,null,null,null,null,null,null,null,null,null,null,null,null,null,null,null,null,null,null,{"$f":"IF((AJ293+AJ294+AJ295)=0,IF((IF((AJ260+AJ265+AJ291)=0,0,AJ266*100/(AJ260+AJ265+AJ291)))<=5,\"cheltuieli capitol 3 se incadreaza in limita de 5%\",\"cheltuieli capitol 3 nu se incadreaza in limita de 5%\"),IF((IF((AJ260+AJ265+AJ291)=0,0,AJ266*100/(AJ260+AJ265+AJ291)))<=10,\"cheltuieli capitol 3 se incadreaza in limita de 10%\",\"cheltuieli capitol 3 nu se incadreaza in limita de 10%\"))","v":"cheltuieli capitol 3 se incadreaza in limita de 5%"}]
["Capitolul 4 Cheltuieli pentru investiţia de bază - total, din care:",null,null,null,null,null,null,null,null,null,null,null,null,null,null,null,null,null,null,null,null,null,null,null,null,null,null,null,null,null,null,null,null,null,null,{"$f":"AJ292","v":0},null,null,null,null,null,null,null,null,{"$f":"AS292","v":0},null,null,null,null,null,null,null,{"$f":"SUM(AJ291:AZ291)","v":0}]
["Constructii, din care:",null,null,null,null,null,null,null,null,null,null,null,null,null,null,null,null,null,null,null,null,null,null,null,null,null,null,null,null,null,null,null,null,null,null,{"$f":"SUM(AJ293:AJ298)","v":0},null,null,null,null,null,null,null,null,{"$f":"SUM(AS293:AS298)","v":0},null,null,null,null,null,null,null,0]
["4.1 Construcţii şi instalaţii",null,null,null,null,null,null,null,null,null,null,null,null,null,null,null,null,null,null,null,null,null,null,null,null,null,null,null,null,null,null,null,null,null,null,null,null,null,null,null,null,null,null,null,null,null,null,null,null,null,null,null,0]
["4.2 Montaj utilaj tehnologic",null,null,null,null,null,null,null,null,null,null,null,null,null,null,null,null,null,null,null,null,null,null,null,null,null,null,null,null,null,null,null,null,null,null,null,null,null,null,null,null,null,null,null,null,null,null,null,null,null,null,null,0]
["4.3 Utilaje, echipamente tehnologice şi funcţionale cu montaj (procurare)",null,null,null,null,null,null,null,null,null,null,null,null,null,null,null,null,null,null,null,null,null,null,null,null,null,null,null,null,null,null,null,null,null,null,null,null,null,null,null,null,null,null,null,null,null,null,null,null,null,null,null,0]
["4.4 Utilaje şi echipamente fară montaj, mijloace de transport, alte achiziţii specifice",null,null,null,null,null,null,null,null,null,null,null,null,null,null,null,null,null,null,null,null,null,null,null,null,null,null,null,null,null,null,null,null,null,null,null,null,null,null,null,null,null,null,null,null,null,null,null,null,null,null,null,0]
["4.5 Dotări",null,null,null,null,null,null,null,null,null,null,null,null,null,null,null,null,null,null,null,null,null,null,null,null,null,null,null,null,null,null,null,null,null,null,null,null,null,null,null,null,null,null,null,null,null,null,null,null,null,null,null,0]
["4.6 Active necorporale",null,null,null,null,null,null,null,null,null,null,null,null,null,null,null,null,null,null,null,null,null,null,null,null,null,null,null,null,null,null,null,null,null,null,null,null,null,null,null,null,null,null,null,null,null,null,null,null,null,null,null,0]
["Capitolul 5 Alte cheltuieli - total, din care:",null,null,null,null,null,null,null,null,null,null,null,null,null,null,null,null,null,null,null,null,null,null,null,null,null,null,null,null,null,null,null,null,null,null,{"$f":"AJ303+AJ300","v":0},null,null,null,null,null,null,null,null,{"$f":"AS304+AS303+AS300+AS305","v":0},null,null,null,null,null,null,null,0]
["5.1 Organizare de şantier",null,null,null,null,null,null,null,null,null,null,null,null,null,null,null,null,null,null,null,null,null,null,null,null,null,null,null,null,null,null,null,null,null,null,{"$f":"SUM(AJ301:AR302)","v":0},null,null,null,null,null,null,null,null,{"$f":"SUM(AS301:AZ302)","v":0},null,null,null,null,null,null,null,0]
["      5.1.1 lucrări de construcţii şi instalaţii aferente organizării de şantier",null,null,null,null,null,null,null,null,null,null,null,null,null,null,null,null,null,null,null,null,null,null,null,null,null,null,null,null,null,null,null,null,null,null,null,null,null,null,null,null,null,null,null,null,null,null,null,null,null,null,null,0]
["      5.1.2 cheltuieli conexe orgănizării şantierului",null,null,null,null,null,null,null,null,null,null,null,null,null,null,null,null,null,null,null,null,null,null,null,null,null,null,null,null,null,null,null,null,null,null,null,null,null,null,null,null,null,null,null,null,null,null,null,null,null,null,null,0]
["5.2 Comisioane, taxe, costul creditului",null,null,null,null,null,null,null,null,null,null,null,null,null,null,null,null,null,null,null,null,null,null,null,null,null,null,null,null,null,null,null,null,null,null,null,null,null,null,null,null,null,null,null,null,null,null,null,null,null,null,null,0]
["5.3 Cheltuieli diverse şi neprevăzute",null,null,null,null,null,null,null,null,null,null,null,null,null,null,null,null,null,null,null,null,null,null,null,null,null,null,null,null,null,null,null,null,null,null,null,null,null,null,null,null,null,null,null,null,null,null,null,null,null,null,null,0]
["5.4 Cheltuieli pentru informare şi publicitate",null,null,null,null,null,null,null,null,null,null,null,null,null,null,null,null,null,null,null,null,null,null,null,null,null,null,null,null,null,null,null,null,null,null,null,null,null,null,null,null,null,null,null,null,null,null,null,null,null,null,null,{"$f":"SUM(AJ305:AZ305)","v":0}]
["Capitolul 6 Cheltuieli pentru darea în exploatare - total, din care:",null,null,null,null,null,null,null,null,null,null,null,null,null,null,null,null,null,null,null,null,null,null,null,null,null,null,null,null,null,null,null,null,null,null,{"$f":"SUM(AJ307:AR308)","v":0},null,null,null,null,null,null,null,null,{"$f":"SUM(AS307:AZ308)","v":0},null,null,null,null,null,null,null,0]
["6.1 Pregătirea personalului de exploatare",null,null,null,null,null,null,null,null,null,null,null,null,null,null,null,null,null,null,null,null,null,null,null,null,null,null,null,null,null,null,null,null,null,null,null,null,null,null,null,null,null,null,null,null,null,null,null,null,null,null,null,0]
["6.2 Probe tehnologice şi teste",null,null,null,null,null,null,null,null,null,null,null,null,null,null,null,null,null,null,null,null,null,null,null,null,null,null,null,null,null,null,null,null,null,null,null,null,null,null,null,null,null,null,null,null,null,null,null,null,null,null,null,0]
["TOTAL GENERAL",null,null,null,null,null,null,null,null,null,null,null,null,null,null,null,null,null,null,null,null,null,null,null,null,null,null,null,null,null,null,null,null,null,null,{"$f":"AJ260+AJ265+AJ266+AJ291+AJ299+AJ306","v":0},null,null,null,null,null,null,null,null,{"$f":"AS260+AS265+AS266+AS291+AS299+AS306","v":0},null,null,null,null,null,null,null,0]
["Verificare actualizare",null,null,null,null,null,null,null,null,null,null,null,null,null,null,null,null,null,null,null,null,null,null,null,null,null,null,null,null,null,null,null,null,null,null,{"$f":"IF((IF(AJ309=0,0,AJ311*100/AJ309))<=5,\"actualizare mai mică de 5% din valoarea eligibila\",\"actualizare mai mare de 5% din valoarea eligibila\")","v":"actualizare mai mică de 5% din valoarea eligibila"}]
["ACTUALIZARE Cheltuieli Eligibile (max 5%)",null,null,null,null,null,null,null,null,null,null,null,null,null,null,null,null,null,null,null,null,null,null,null,null,null,null,null,null,null,null,null,null,null,null,null,null,null,null,null,null,null,null,null,null,null,null,null,null,null,null,null,{"$f":"SUM(AJ311:AZ311)","v":0}]
["TOTAL GENERAL CU ACTUALIZARE",null,null,null,null,null,null,null,null,null,null,null,null,null,null,null,null,null,null,null,null,null,null,null,null,null,null,null,null,null,null,null,null,null,null,{"$f":"AJ309+AJ311","v":0},null,null,null,null,null,null,null,null,{"$f":"AS309","v":0},null,null,null,null,null,null,null,0]
["Valoare TVA",null,null,null,null,null,null,null,null,null,null,null,null,null,null,null,null,null,null,null,null,null,null,null,null,null,null,null,null,null,null,null,null,null,null,null,null,null,null,null,null,null,null,null,null,null,null,null,null,null,null,null,0]
[null,null,null,null,null,null,null,null,null,null,null,null,null,null,null,null,null,null,null,null,null,null,null,null,null,null,null,null,null,null,null,null,null,null,null,{"$f":"SUM(AJ312:AR313)","v":0},null,null,null,null,null,null,null,null,{"$f":"SUM(AS312:AZ313)","v":0},null,null,null,null,null,null,null,0]
["TOTAL GENERAL inclusiv TVA",null,null,null,null,null,null,null,null,null,null,null,null,null,null,null,null,null,null,null,null,null,null,null,null,null,null,null,null,null,null,null,null,null,null,{"$f":"BA312+BA313","v":0}]
[null,null,null,null,null,null,null,null,null,null,null,null,null,null,null,null,null,null,null,null,null,null,null,null,null,null,null,null,null,null,null,null,null,null,null,"LEI",null,null,null,null,null,null,null,null,"EURO"]
["VALOARE TOTALĂ",null,null,null,null,null,null,null,null,null,null,null,null,null,null,null,null,null,null,null,null,null,null,null,null,null,null,null,null,null,null,null,null,null,null,{"$f":"AS317*AA254","v":0},null,null,null,null,null,null,null,null,{"$f":"AJ315","v":0}]
["VALOARE ELIGIBILĂ",null,null,null,null,null,null,null,null,null,null,null,null,null,null,null,null,null,null,null,null,null,null,null,null,null,null,null,null,null,null,null,null,null,null,{"$f":"AS318*AA254","v":0},null,null,null,null,null,null,null,null,{"$f":"AJ312+AJ313","v":0}]
["VALOARE NEELIGIBILĂ",null,null,null,null,null,null,null,null,null,null,null,null,null,null,null,null,null,null,null,null,null,null,null,null,null,null,null,null,null,null,null,null,null,null,{"$f":"AS319*AA254","v":0},null,null,null,null,null,null,null,null,{"$f":"AS312+AS313","v":0}]
[]
["Plan Financiar",null,null,null,null,null,null,null,null,null,null,null,null,null,null,null,null,null,null,null,null,null,null,null,null,null,null,null,null,null,null,null,null,null,null,"Cheltuieli eligibile EURO",null,null,null,null,null,null,null,null,"Cheltuieli neeligibile EURO",null,null,null,null,null,null,null,"Total"]
["Ajutor public nerambursabil (contribuţie UE şi cofinanţare naţională)",null,null,null,null,null,null,null,null,null,null,null,null,null,null,null,null,null,null,null,null,null,null,null,null,null,null,null,null,null,null,null,null,null,null,null,null,null,null,null,null,null,null,null,null,null,null,null,null,null,null,null,{"$f":"SUM(AJ322:AZ322)","v":0}]
["Cofinantare privata, din care:",null,null,null,null,null,null,null,null,null,null,null,null,null,null,null,null,null,null,null,null,null,null,null,null,null,null,null,null,null,null,null,null,null,null,{"$f":"SUM(AJ324:AR325)","v":0},null,null,null,null,null,null,null,null,{"$f":"SUM(AS324:AZ325)","v":0},null,null,null,null,null,null,null,0]
[null,null,null,null,null,null,null,null,null,null,null,null,null,null,null,"- autofinantare",null,null,null,null,null,null,null,null,null,null,null,null,null,null,null,null,null,null,null,null,null,null,null,null,null,null,null,null,null,null,null,null,null,null,null,null,0]
[null,null,null,null,null,null,null,null,null,null,null,null,null,null,null,"- imprumuturi",null,null,null,null,null,null,null,null,null,null,null,null,null,null,null,null,null,null,null,null,null,null,null,null,null,null,null,null,null,null,null,null,null,null,null,null,0]
["Buget local",null,null,null,null,null,null,null,null,null,null,null,null,null,null,null,null,null,null,null,null,null,null,null,null,null,null,null,null,null,null,null,null,null,null,null,null,null,null,null,null,null,null,null,null,null,null,null,null,null,null,null,0]
["TOTAL PROIECT",null,null,null,null,null,null,null,null,null,null,null,null,null,null,null,null,null,null,null,null,null,null,null,null,null,null,null,null,null,null,null,null,null,null,{"$f":"AJ322+AJ323+AJ326","v":0},null,null,null,null,null,null,null,null,{"$f":"AS323+AS326","v":0},null,null,null,null,null,null,null,0]
["Procent contribuţie publică",null,null,null,null,null,null,null,null,null,null,null,null,null,null,null,null,null,null,null,null,null,null,null,null,null,null,null,null,null,null,null,null,null,null,{"$f":"IF(AJ327=0,0,AJ322*100/AJ327)","v":0},null,null,null,null,null,null,null,"%"]
["Avans solicitat"]
["Procent avans solicitat ca procent din ajutorul public nerambursabil",null,null,null,null,null,null,null,null,null,null,null,null,null,null,null,null,null,null,null,null,null,null,null,null,null,null,null,null,null,null,null,null,null,null,{"$f":"IF(AJ322=0,0,AJ329*100/AJ322)","v":0},null,null,null,null,null,null,null,null,{"$f":"IF(AJ330<=50,\"Suma avans mai mica de 50% din ajutorul public\",\"Suma avans mai mare de 50% din ajutorul public\")","v":"Suma avans mai mica de 50% din ajutorul public"}]
[null,null,null,null,null,null,null,"MINISTERUL AGRICULTURII ŞI DEZVOLTĂRII RURALE"]
[null,null,null,null,null,null,null,null,null,null,null,null,null,null,null,null,null,null,null,null,null,null,null,null,null,null,null,null,null,null,null,null,null,null,null,null,null,null,null,null,null,null,"Anexa A1\nHG 907/2016"]
[null,null,null,null,null,null,null,"AGENŢIA PENTRU FINANŢAREA INVESTIŢIILOR RURALE"]
[null,null,null,null,null,null,null,null,null,null,null,null,null,null,null,null,null,null,null,null,null,null,null,null,null,null,null,null,null,null,null,null,null,null,null,null,null,null,null,null,null,null,"GAL Ţara Vrancei 2019",null,null,null,null,null,null,null,null,null,null,null,null,null,null,"Nr.1"]
[null,null,null,null,null,null,null,"Deviz financiar- Capitolul 3 - Cheltuieli pentru proiectare şi asistenţa tehnică - EURO"]
[]
[]
["(Titlu deviz)"]
["Nr.crt",null,null,null,"Specificaţie",null,null,null,null,null,null,null,null,null,null,null,null,null,null,null,null,null,null,null,null,null,null,null,null,null,null,null,null,null,null,null,null,null,null,null,null,null,"Valoare eligibilă",null,null,null,null,null,null,null,null,"Valoare\nneeligibilă"]
["3.1",null,null,null,"Cheltuieli pentru studii - total din care:",null,null,null,null,null,null,null,null,null,null,null,null,null,null,null,null,null,null,null,null,null,null,null,null,null,null,null,null,null,null,null,null,null,null,null,null,null,{"$f":"SUM(AQ341:AY343)","v":0},null,null,null,null,null,null,null,null,{"$f":"SUM(AZ341:BI343)","v":0}]
[null,null,null,null,"3.1.1 Studii de teren: geotehnice, geologice, hidrologice, hidrogeotehnice, fotogrammetrice, topografice şi de stabilitate ale terenului pe care se amplasează obiectivul de investiţie"]
[null,null,null,null,"3.1.2 Raport privind impactul asupra mediului"]
[null,null,null,null,"3.1.3 Studii de specialitate necesare în funcție de specificul investiției"]
["3.2",null,null,null,"Documentaţii-suport şi cheltuieli pentru obţinerea de avize, acorduri şi autorizaţii",null,null,null,null,null,null,null,null,null,null,null,null,null,null,null,null,null,null,null,null,null,null,null,null,null,null,null,null,null,null,null,null,null,null,null,null,null,{"$f":"SUM(AQ345:AY353)","v":0},null,null,null,null,null,null,null,null,{"$f":"SUM(AZ345:BI353)","v":0}]
[null,null,null,null,"1. obţinerea/prelungirea valabilităţii ceritificatului de urbanism"]
[null,null,null,null,"2. obţinerea/prelungirea valabilităţii autorizaţiei de construire/desfiinţare"]
[null,null,null,null,"3. obţinerea avizelor şi acordurilor pentru racorduri şi branşamente la reţelele publice de alimentare cu apă, canalizare, alimentare cu gaze, alimentare cu agent termic, energie electrică, telefonie"]
[null,null,null,null,"4. obţinerea certificatului de nomenclatură stradală şi adresa"]
[null,null,null,null,"5. întocmirea documentaţiei, obţinerea numărului cadastral provizoriu şi înregistrarea terenului în cartea funciară"]
[null,null,null,null,"6. obținerea actului administrativ al autorității competente pentru protecția mediului"]
[null,null,null,null,"7. obţinerea avizului de protecție civilă"]
[null,null,null,null,"8. avizul de specialitate în cazul obiectivelor de patrimoniu"]
[null,null,null,null,"9. alte avize, acorduri şi autorizaţii"]
["3.3",null,null,null,"Cheltuieli pentru expertizarea tehnică a construcţiilor existente, a structurilor şi/sau, după caz, a proiectelor tehnice, inclusiv întocmirea de către expertul tehnic a raportului de expertiză tehnică"]
["3.4",null,null,null,"Cheltuieli pentru certificarea performanţei energetice şi auditul energetic al\nclădirilor"]
["3.5",null,null,null,"Cheltuieli pentru proiectare",null,null,null,null,null,null,null,null,null,null,null,null,null,null,null,null,null,null,null,null,null,null,null,null,null,null,null,null,null,null,null,null,null,null,null,null,null,{"$f":"SUM(AQ357:AY362)","v":0},null,null,null,null,null,null,null,null,{"$f":"SUM(AZ357:BI362)","v":0}]
[null,null,null,null,"3.5.1 Temă de proiectare"]
[null,null,null,null,"3.5.2 Studiu de prefezabilitate"]
[null,null,null,null,"3.5.3. Studiu de prefezabilitate/documentație de avizare a lucrărilor de intervenții și deviz general"]
[null,null,null,null,"3.5.4. Documentațiile tehnice necesare în vederea obținerii avizelor/ acordurilor/ autorizațiilor"]
[null,null,null,null,"3.5.5. Verificarea tehnică de calitate a proiectului tehnic și a detaliilor de execuție"]
[null,null,null,null,"3.5.6. Proiect tehnic și detalii de execuție"]
["3.6",null,null,null,"Cheltuieli aferente organizării şi derulării procedurilor de achiziţii publice",null,null,null,null,null,null,null,null,null,null,null,null,null,null,null,null,null,null,null,null,null,null,null,null,null,null,null,null,null,null,null,null,null,null,null,null,null,null,null,null,null,null,null,null,null,null,{"$f":"SUM(AZ364:BI367)","v":0}]
[null,null,null,null,"1. Cheltuieli aferente întocmirii documentaţiei de atribuire şi multiplicării acesteia (exclusiv cele cumpărate de ofertanţi)"]
[null,null,null,null,"2. Cheltuieli cu onorariile, transportul, cazarea şi diurna membrilor desemnaţi în comisiile de evaluare"]
[null,null,null,null,"3. Anunţuri de intenţie, de participare şi de atribuire a contractelor, corespondenţă prin poştă, fax, poştă electronică în legătură cu procedurile de achiziţie publică"]
[null,null,null,null,"4. Cheltuieli aferente organizării şi derulării procedurilor de achiziţii publice"]
["3.7",null,null,null,"Cheltuieli pentru consultanţă",null,null,null,null,null,null,null,null,null,null,null,null,null,null,null,null,null,null,null,null,null,null,null,null,null,null,null,null,null,null,null,null,null,null,null,null,null,{"$f":"SUM(AQ369:AY370)","v":0},null,null,null,null,null,null,null,null,{"$f":"SUM(AZ369:BI370)","v":0}]
[null,null,null,null,"3.7.1 Managementul de proiect pentru obiectivul de investiţii"]
[null,null,null,null,"3.7.2 Auditul financiar"]
["3.8",null,null,null,"Cheltuieli pentru asistenţa tehnică",null,null,null,null,null,null,null,null,null,null,null,null,null,null,null,null,null,null,null,null,null,null,null,null,null,null,null,null,null,null,null,null,null,null,null,null,null,{"$f":"AQ372+AQ375","v":0},null,null,null,null,null,null,null,null,{"$f":"AZ372+AZ375","v":0}]
[null,null,null,null,"3.8.1. Asistenţă tehnică din partea proiectantului",null,null,null,null,null,null,null,null,null,null,null,null,null,null,null,null,null,null,null,null,null,null,null,null,null,null,null,null,null,null,null,null,null,null,null,null,null,{"$f":"SUM(AQ373:AY374)","v":0},null,null,null,null,null,null,null,null,{"$f":"SUM(AZ373:BI374)","v":0}]
[null,null,null,null,"1.1. pe perioada de execuţie a lucrărilor"]
[null,null,null,null,"1.2. pentru participarea proiectantului la fazele incluse în programul de control al lucrărilor de execuţie, avizat de către Inspectoratul de Stat în Construcţii"]
[null,null,null,null,"3.8.2 Dirigenţie de şantier, asigurată de personal tehnic de specialitate, autorizat"]
[null,null,null,null,"Total valoare fără TVA",null,null,null,null,null,null,null,null,null,null,null,null,null,null,null,null,null,null,null,null,null,null,null,null,null,null,null,null,null,null,null,null,null,null,null,null,null,{"$f":"AQ340+AQ344+AQ354+AQ355+AQ356+AQ363+AQ368+AQ371","v":0},null,null,null,null,null,null,null,null,{"$f":"AZ340+AZ344+AZ354+AZ355+AZ356+AZ363+AZ368+AZ371","v":0}]
[null,null,null,null,"Valoare TVA (aferentă cheltuielilor eligibile şi neeligibile)"]
["TOTAL DEVIZ FINANCIAR 1 (inclusiv TVA)",null,null,null,null,null,null,null,null,null,null,null,null,null,null,null,null,null,null,null,null,null,null,null,null,null,null,null,null,null,null,null,null,null,null,null,null,null,null,null,null,null,{"$f":"AQ376+AZ376+AQ377+AZ377","v":0}]
[]
[]
[null,null,null,null,null,null,null,"MINISTERUL AGRICULTURII ŞI DEZVOLTĂRII RURALE"]
[null,null,null,null,null,null,null,null,null,null,null,null,null,null,null,null,null,null,null,null,null,null,null,null,null,null,null,null,null,null,null,null,null,null,null,null,null,null,null,null,null,null,"Anexa A2\nHG 907/2016"]
[null,null,null,null,null,null,null,"AGENŢIA PENTRU FINANŢAREA INVESTIŢIILOR RURALE"]
[null,null,null,null,null,null,null,null,null,null,null,null,null,null,null,null,null,null,null,null,null,null,null,null,null,null,null,null,null,null,null,null,null,null,null,null,null,null,null,null,null,null,"GAL Ţara Vrancei 2019",null,null,null,null,null,null,null,null,null,null,null,null,null,null,null,"Nr.1"]
[null,null,null,null,null,null,null,"DEVIZ PE OBIECT *"]
[]
[]
["(Descriere obiect de construcţie)"]
["Nr. crt.",null,null,null,"Denumire",null,null,null,null,null,null,null,null,null,null,null,null,null,null,null,null,null,null,null,null,null,null,null,null,null,null,null,null,null,null,null,null,null,null,null,null,null,"Valoarea pe categorii de lucrări, fară TVA - EURO"]
["Cap. 4 + Cheltuieli pentru investiţia de bază",null,null,null,null,null,null,null,null,null,null,null,null,null,null,null,null,null,null,null,null,null,null,null,null,null,null,null,null,null,null,null,null,null,null,null,null,null,null,null,null,null,"Valoare eligibilă",null,null,null,null,null,null,null,null,"Valoare\nneeligibilă"]
["I - LUCRĂRI DE CONSTRUCŢII ŞI INSTALAŢII"]
["4.1",null,null,null,"Construcții și instalații"]
[null,null,null,null,"4.1.1 Terasamente, sistematizare pe verticală și amenajări exterioare"]
[null,null,null,null,"4.1.2 Rezistență"]
[null,null,null,null,"4.1.3 Arhitectură"]
[null,null,null,null,"4.1.4 Instalații"]
[null,null,null,null,"TOTAL I ( fără TVA)",null,null,null,null,null,null,null,null,null,null,null,null,null,null,null,null,null,null,null,null,null,null,null,null,null,null,null,null,null,null,null,null,null,null,null,null,null,{"$f":"SUM(AQ393:AY396)","v":0},null,null,null,null,null,null,null,null,{"$f":"SUM(AZ393:BI396)","v":0}]
["II - MONTAJ"]
["4.2",null,null,null,"Montaj utilaje, echipamente tehnologice și funcționale"]
[null,null,null,null,"TOTAL II ( fără TVA)",null,null,null,null,null,null,null,null,null,null,null,null,null,null,null,null,null,null,null,null,null,null,null,null,null,null,null,null,null,null,null,null,null,null,null,null,null,{"$f":"SUM(AQ399)","v":0},null,null,null,null,null,null,null,null,{"$f":"SUM(AZ399)","v":0}]
["III - PROCURARE"]
["4.3",null,null,null,"Utilaje, echipamente tehnologice și funcționale care necesită montaj"]
["4.4",null,null,null,"Utilaje, echipamente tehnologice și funcționale care nu necesită montaj și echipamente de transport"]
["4.5",null,null,null,"Dotări"]
["4.6",null,null,null,"Active necorporale"]
[null,null,null,null,"TOTAL III ( fără TVA)",null,null,null,null,null,null,null,null,null,null,null,null,null,null,null,null,null,null,null,null,null,null,null,null,null,null,null,null,null,null,null,null,null,null,null,null,null,{"$f":"SUM(AQ402:AY405)","v":0},null,null,null,null,null,null,null,null,{"$f":"SUM(AZ402:BI405)","v":0}]
["TOTAL ( TOTAL I + TOTAL II +TOTAL III) fără TVA",null,null,null,null,null,null,null,null,null,null,null,null,null,null,null,null,null,null,null,null,null,null,null,null,null,null,null,null,null,null,null,null,null,null,null,null,null,null,null,null,null,{"$f":"AQ406+AQ400+AQ397","v":0},null,null,null,null,null,null,null,null,{"$f":"AZ406+AZ400+AZ397","v":0}]
["TVA aferent cheltuielilor eligibile şi neeligibile"]
["TOTAL DEVIZ PE OBIECT (inclusiv TVA)",null,null,null,null,null,null,null,null,null,null,null,null,null,null,null,null,null,null,null,null,null,null,null,null,null,null,null,null,null,null,null,null,null,null,null,null,null,null,null,null,null,{"$f":"AQ407+AZ407+AQ408+AZ408","v":0}]
[]
[]
[]
[null,null,null,null,null,null,null,"MINISTERUL AGRICULTURII ŞI DEZVOLTĂRII RURALE"]
[null,null,null,null,null,null,null,null,null,null,null,null,null,null,null,null,null,null,null,null,null,null,null,null,null,null,null,null,null,null,null,null,null,null,null,null,null,null,null,null,null,null,"Anexa A3\nHG 907/2016"]
[null,null,null,null,null,null,null,"AGENŢIA PENTRU FINANŢAREA INVESTIŢIILOR RURALE"]
[null,null,null,null,null,null,null,null,null,null,null,null,null,null,null,null,null,null,null,null,null,null,null,null,null,null,null,null,null,null,null,null,null,null,null,null,null,null,null,null,null,null,"GAL Ţara Vrancei 2019",null,null,null,null,null,null,null,null,null,null,null,null,null,null,null,"Nr.1"]
[]
[]
[]
["(Titlu deviz)"]
["Deviz capitolul 2- Cheltuieli pentru asigurarea utilităţilor necesare obiectivului - EURO"]
["Nr.crt",null,null,null,"Specificaţie",null,null,null,null,null,null,null,null,null,null,null,null,null,null,null,null,null,null,null,null,null,null,null,null,null,null,null,null,null,null,null,null,null,null,null,null,null,"Valoare eligibilă",null,null,null,null,null,null,null,null,"Valoare\nneeligibilă"]
[1,null,null,null,"Alimentare cu apă"]
[2,null,null,null,"Canalizare"]
[3,null,null,null,"Alimentare cu gaze naturale"]
[4,null,null,null,"Alimentare cu agent termic"]
[5,null,null,null,"Alimentare cu energie electrică"]
[6,null,null,null,"Telecomunicaţii (telefonie, radio-tv,etc)"]
[7,null,null,null,"Drumuri de acces"]
[8,null,null,null,"Căi ferate industriale"]
[9,null,null,null,"Alte utilități"]
[null,null,null,null,"Total valoare fără TVA",null,null,null,null,null,null,null,null,null,null,null,null,null,null,null,null,null,null,null,null,null,null,null,null,null,null,null,null,null,null,null,null,null,null,null,null,null,{"$f":"SUM(AQ423:AY431)","v":0},null,null,null,null,null,null,null,null,{"$f":"SUM(AZ423:BI431)","v":0}]
[null,null,null,null,"Valoare TVA aferentă cheltuielilor eligibile şi neeligibile"]
["TOTAL DEVIZ CAPITOLUL 2 (inclusiv TVA)",null,null,null,null,null,null,null,null,null,null,null,null,null,null,null,null,null,null,null,null,null,null,null,null,null,null,null,null,null,null,null,null,null,null,null,null,null,null,null,null,null,{"$f":"AQ432+AZ432+AQ433+AZ433","v":0}]
[]
[" Deviz capitolul 5 - Alte cheltuieli - EURO"]
["Nr.crt",null,null,null,"Specificaţie",null,null,null,null,null,null,null,null,null,null,null,null,null,null,null,null,null,null,null,null,null,null,null,null,null,null,null,null,null,null,null,null,null,null,null,null,null,"Valoare eligibilă",null,null,null,null,null,null,null,null,"Valoare\nneeligibilă"]
[]
["5.1 ",null,null,null,"Organizare de şantier",null,null,null,null,null,null,null,null,null,null,null,null,null,null,null,null,null,null,null,null,null,null,null,null,null,null,null,null,null,null,null,null,null,null,null,null,null,{"$f":"SUM(AQ440:AY441)","v":0},null,null,null,null,null,null,null,null,{"$f":"SUM(AZ440:BI441)","v":0}]
[null,null,null,null,"5.1.1 Lucrări de construcţii şi instalaţii aferente organizării de şantier"]
[null,null,null,null,"5.1.2 Cheltuieli conexe organizării de şantier"]
["5.2",null,null,null,"Comisioane, cote, taxe, costul creditului",null,null,null,null,null,null,null,null,null,null,null,null,null,null,null,null,null,null,null,null,null,null,null,null,null,null,null,null,null,null,null,null,null,null,null,null,null,{"$f":"SUM(AQ444:AY447)","v":0},null,null,null,null,null,null,null,null,{"$f":"SUM(AZ443:BI447)","v":0}]
[null,null,null,null,"5.2.1. Comisioanele şi dobânzile aferente creditului băncii finanţatoare"]
[null,null,null,null,"5.2.2. Cota aferentă ISC pentru controlul calităţii lucrărilor de construcţii"]
[null,null,null,null,"5.2.3. Cota aferentă ISC pentru controlul statului în amenajarea teritoriului, urbanism şi pentru autorizarea lucrărilor de construcţii"]
[null,null,null,null,"5.2.4. Cota aferentă Casei Sociale a Constructorilor - CSC"]
[null,null,null,null,"5.2.5. Taxe pentru acorduri, avize conforme şi autorizaţia de construire/desfiinţare"]
["5.3",null,null,null," Cheltuieli diverse si neprevazute"]
["5.4",null,null,null," Cheltuieli pentru informare și publicitate"]
[null,null,null,null,"TOTAL DEVIZ CAPITOLUL 5",null,null,null,null,null,null,null,null,null,null,null,null,null,null,null,null,null,null,null,null,null,null,null,null,null,null,null,null,null,null,null,null,null,null,null,null,null,{"$f":"AQ439+AQ442+AQ448","v":0},null,null,null,null,null,null,null,null,{"$f":"AZ439+AZ442+AZ448+AZ449","v":0}]
[null,null,null,null,"VALOARE TVA aferentă cheltuielilor eligibile şi neeligibile"]
[null,null,null,null,"TOTAL DEVIZ CAPITOLUL 5 ( inclusiv TVA)",null,null,null,null,null,null,null,null,null,null,null,null,null,null,null,null,null,null,null,null,null,null,null,null,null,null,null,null,null,null,null,null,null,null,null,null,null,{"$f":"AQ450+AZ450+AQ451+AZ451","v":0}]
[]
[]
[]
["MINISTERUL AGRICULTURII ŞI DEZVOLTĂRII RURALE",null,null,null,null,null,null,null,null,null,null,null,null,null,null,null,null,null,null,null,null,null,null,null,null,null,null,null,null,null,"SECTIUNE SPECIFICA MASURA 3/6A"]
["AGENŢIA PENTRU FINANŢAREA INVESTIŢIILOR RURALE"]
[]
["D. ALTE INFORMAȚII :"]
["Programarea proiectului:"]
["Numar luni de implementare"]
[]
["E. LISTA DOCUMENTELOR ANEXATE PROIECTELOR AFERENTE MĂSURII 3/6A",null,null,null,null,null,null,null,null,null,null,null,null,null,null,null,null,null,null,null,null,null,null,null,null,null,null,null,null,null,null,null,null,null,null,null,null,null,null,null,null,null,null,null,null,null,null,null,null,null,null,null,null,null,null,"OPIS"]
[null,null,null,null,null,null,null,null,null,null,null,null,null,null,null,null,null,null,null,null,null,null,null,null,null,null,null,null,null,null,null,null,null,null,null,null,null,null,null,null,null,null,null,null,null,null,null,null,null,null,null,null,null,null,null,"documente"]
["A se anexa documentele în ordinea de mai jos:"]
["Lista documente",null,null,null,null,null,null,null,null,null,null,null,null,null,null,null,null,null,null,null,null,null,null,null,null,null,null,null,null,null,"Obligatoriu pentru toate proiectele",null,null,null,null,"Obligatoriu, dacă proiectul impune",null,null,null,null,null,null,"PAGINA de   la - până la",null,null,null,null,null,null,null,"Obligatoriu pentru toate proiectele",null,null,null,null,"Obligatoriu, dacă proiectul impune"]
["ETAPA:",null,null,null,null,null,null,null,null,null,null,null,null,null,null,null,null,null,null,null,null,null,null,null,null,null,null,null,null,null,"DEPUNERE",null,null,null,null,null,null,null,null,null,null,null,null,null,null,null,null,null,null,null,"CONTRACTARE"]
["DOC. 1.a) Studiul de Fezabilitate (atat pentru proiectele care prevad constructii-montaj cat si pentru proiectele fara constructii-montaj) "]
["DOC. 1.b) Expertiza tehnică de specialitate asupra construcţiei existente (in cazul proiectelor care prevăd modernizarea/ finalizarea construcţiilor existente/ achiziţii de utilaje cu montaj care schimbă regimul de exploatare a construcţiei existente) "]
["DOC 1.c) Raportul privind stadiul fizic al lucrărilor (în cazul proiectelor care prevăd modernizarea/ finalizarea construcţiilor existente/ achiziţii de utilaje cu montaj care schimbă regimul de exploatare a construcţiei existente) (numai în cazul construcțiilor nefinalizate)"]
["DOC. 2.1 Situaţiile financiare (bilanţ – formularul 10, contul de profit şi pierderi - formularul 20, formularele 30 și 40), precedente anului depunerii proiectului înregistrate la Administraţia Financiară,în care rezultatul operaţional (rezultatul de exploatare din contul de profit și pierdere - formularul 20 ) să fie pozitiv (inclusiv 0). În cazul în care solicitantul este înfiinţat cu cel puţin doi ani financiari înainte de anul depunerii cererii de finanţare se vor depune ultimele două situaţii financiare). Exceptie fac intreprinderile infiintate in anul depunerii cererii de finantare.\nsau"]
["Doc 2.2 Declaraţie privind veniturile realizate din Romania în anul precedent depunerii proiectului, înregistrată la Administraţia Financiară (formularul 200) insotita de Anexele la formular in care rezultatul brut (veniturile sa fie cel puţin egale cu cheltuielile) obtinut in anul precedent depunerii proiectului sa fie pozitiv (inclusiv 0)                                                                                                                                   şi/sau"]
["DOC. 2.3 Declaraţia privind veniturile din activităţi agricole impuse pe norme de venit (formularul 221), document obligatoriu de prezentat la depunerea cererii de finanţare;\nsau"]
["DOC. 2.4 Declaraţia de inactivitate înregistrată la Administraţia Financiară, în cazul solicitanţilor care nu au desfăşurat activitate anterior depunerii proiectului."]
["DOC. 3. Documente pentru terenurile și/sau clădirile aferente realizarii investiției:"]
["DOC. 3.1 Pentru proiectele care presupun realizarea de lucrări de construcție sau achizitia de utilaje/echipamente cu montaj, se va prezenta înscrisul care să certifice, după caz:\na) Dreptul de proprietate privată\nb) Dreptul de concesiune\nc) Dreptul de superficie;\nActele doveditoare ale dreptului de proprietate privată, reprezentate de înscrisurile constatatoare ale unui act juridic civil, jurisdicțional sau\nadministrativ cu efect constitutiv translativ sau declarativ de proprietate, precum:\n- Actele juridice translative de proprietate, precum contractele de vânzarecumpărare, donație, schimb, etc;\n- Actele juridice declarative de proprietate, precum împărțeala judiciară sau tranzacția;\n- Actele jurisdicționale declarative, precum hotărârile judecătorești cu putere de res-judicata, de partaj, de constatare a uzucapiunii imobiliare, etc.\n- Actele jurisdicționale, precum ordonanțele de adjudecare.\nContract de concesiune care acoperă o perioadă de cel puțin 10 ani începând cu anul depunerii cererii de finanţare, corespunzătoare asigurării sustenabilității investiției şi care oferă dreptul titularului de a executa lucrările de construcție prevăzute prin proiect, în copie.\nÎn cazul contractului de concesiune pentru cladiri, acesta va fi însoțit de o adresă emisă de concedent care să specifice dacă pentru clădirea concesionată există solicitări privind retrocedarea. În cazul contractului de concesiune pentru terenuri, acesta va fi însoțit de o adresă emisă de concedent care să specifice:\n- suprafaţa concesionată la zi - dacă pentru suprafaţa concesionată există solicitări privind retrocedarea sau diminuarea şi dacă da, să se menţioneze care este suprafaţa supusă acestui proces;\n- situaţia privind respectarea clauzelor contractuale, dacă este în graficul de realizare a investiţiilor prevăzute în contract, dacă concesionarul şi-a respectat graficul de plată a redevenţei şi alte clauze.\nContract de superficie care acoperă o perioadă de cel puțin 10 ani începând cu anul depunerii cererii de finanţare, corespunzătoare asigurării sustenabilității investiției şi care oferă dreptul titularului de a executa lucrările de construcție prevăzute prin proiect, în copie.\nDocumentele de mai sus vor fi însoțite de:\n"]
["Documente cadastrale şi documente privind înscrierea imobilelor în evidențele de cadastru și carte funciară (extras de carte funciară pentru informare din care să rezulte inscrierea imobilului în cartea funciară, precum și încheierea de carte funciară emisă de OCPI), în termen de valabilitate la data depunerii (emis cu maxim 30 de zile înaintea depunerii proiectului)."]
["DOC. 3.2 Pentru proiectele care propun doar dotare, achizitie de masini si/sau utilaje fara montaj sau al caror montaj nu necesita lucrari de constructii si/sau lucrari de interventii asupra instalatiilor existente (electricitate, apa, canalizare, gaze, ventilatie, etc.), se vor prezenta înscrisuri valabile pentru o perioadă de cel putin 10 ani începând cu anul depunerii cererii de finanţare care să certifice, după caz:\na) dreptul de proprietate privată,\nb) dreptul de concesiune,\nc) dreptul de superficie,\nd) dreptul de uzufruct;\ne) dreptul de folosinţă cu titlu gratuit;\nf) împrumutul de folosință (comodat)\ng) dreptul de închiriere/locațiune\nDe ex.: contract de cesiune, contract de concesiune, contract de locațiune/închiriere, contract de comodat.\n“Înscrisurile menționate la punctul 3.2 se vor depune respectand una dintre cele 2 conditii (situatii) de mai jos:\nA. vor fi însoțite de:\n-Documente cadastrale şi documente privind înscrierea imobilelor în evidențele de cadastru și carte funciară (extras de carte funciară pentru informare din care să rezulte înscrierea dreptului în cartea funciară, precum și încheierea de carte funciară emisă de OCPI), în termen de valabilitate la data depunerii (emis cu maxim 30 de zile înaintea depunerii proiectului)\nsau\nB. vor fi încheiate în formă autentică de către un notar public sau emise de o autoritate publică sau dobândite printr-o hotărâre judecătorească."]
["DOC. 4. Extras din Registrul agricol – în copie cu ştampila primăriei şi menţiunea \"Conform cu originalul\" pentru dovedirea calităţii de membru al gospodăriei agricole. (dacă este cazul)"]
["DOC. 5. Copia actului de identitate pentru reprezentantul legal de proiect (asociat unic/asociat majoritar/administrator/PFA, titular II, membru IF)."]
["DOC. 6. Documente care atestă forma de organizare a solicitantului."]
["DOC. 6.1 Hotărâre judecătorească definitivă pronunţată pe baza actului de constituire și a statutului propriu în cazul Societăţilor agricole, însoțită de Statutul Societății agricole;"]
["DOC. 6.2 Act constitutiv pentru Societatea cooperativă agricolă."]
["DOC. 7.1 Certificat de cazier judiciar al solicitantului- persoană juridică"]
["DOC. 7.2 Certificat de cazier judiciar al reprezentantului legal-persoană fizică"]
["DOC. 8.1 Certificat de atestare fiscală pentru întreprindere"]
["DOC. 8.2 Certificat de atestare fiscală pentru reprezentantul legal;\nCertificatele vor fi emise de către Direcţia Generală a Finanţelor Publice şi de primăriile de pe raza cărora îşi au sediul social şi punctele de lucru (numai în cazul în care solicitantul este proprietar asupra imobilelor) şi, dacă este cazul, graficul de reeşalonare a datoriilor către bugetul consolidat. (în original)"]
["DOC. 9. Document emis de AJPM, în conformitate cu Protocolul AFIR-ANPM-GNM.                                                                                                                                                                      9.1  Clasarea notificării\nsau \n9.2 Decizia etapei de încadrare, ca document final (prin care se precizează că proiectul nu se supune evaluării impactului asupra mediului şi nici evaluării adecvate)\nsau\n9.3 Acord de mediu în cazul în care se impune evaluarea impactului preconizata asupra mediului\nsau\n9.4 Acord de mediu în cazul evaluării impactului asupra mediului și de evaluare adecvată (dacă este cazul)                  \nsau\n9.5 Aviz Natura 2000 pentru proiectele care impun doar evaluare adecvată.\n"]
["DOC. 10. Declaraţie privind încadrarea întreprinderii în categoria întreprinderilor mici şi mijlocii (Anexa 6.1 din Ghidul solicitantului)"]
["DOC. 11. Declaraţie pe propria răspundere a solicitantului privind respectarea regulii de cumul a ajutoarelor de minimis (Anexa 6.2 din Ghidul solicitantului)"]
["DOC. 12. Documente care dovedesc capacitatea şi sursa de co-finanţare a investiţiei emise de o instituţie financiară în original (extras de cont şi/ sau contract de credit) în termen de maxim 90 de zile de la primirea notificării privind selectarea cererii de finanţare;"]
["DOC. 13. Adresă emisă de instituţia financiară (bancă/trezorerie) cu datele de identificare ale băncii şi ale contului aferent proiectului FEADR (denumirea, adresa băncii, codul IBAN al contului în care se derulează operaţiunile cu AFIR).(în original)  Nu este obligatorie deschiderea unui cont separat pentru derularea proiectului."]
["DOC. 14. Certificat de urbanism pentru investitia propusă prin proiect/Autorizaţie de construire pentru proiecte care prevăd construcţii, însoţit, dacă este cazul, de actul de transfer a dreptului şi obligaţiilor ce decurg din Certificatul de urbanism şi o copie a adresei de înştiinţare.( dacă este cazul)"]
["DOC. 15. Aviz specific privind amplasamentul şi funcţionarea obiectivului eliberat de ANT pentru construcţia/modernizarea sau extinderea structurilor de primire turistice cu funcțiuni de cazare sau restaurante clasificate conform Ordinului 65/2013 si in conformitate cu Ordonanţa de Urgenţă nr. 142 din 28 octombrie 2008, cu modificările şi completările ulterioare.(dacă este cazul)"]
["DOC. 16. Certificat de clasificare eliberat de ANT pentru structura de primire turistică cu funcțiuni de cazare sau restaurante clasificate conform Ordinului 65/2013 si in conformitate cu Ordonanţa de Urgenţă nr. 142 din 28 octombrie 2008 (în cazul modernizării/extinderii), cu modificările şi completările ulterioare.(dacă este cazul)"]
["DOC. 17. Declaraţie pe propria răspundere a solicitantului cu privire la neîncadrarea în categoria \"firma în dificultate\", semnată de persoana autorizată să reprezinte intreprinderea, conform legii \". Declaraţia va fi dată de toţi solicitanţii cu excepţia PFA-urilor, intreprinderilor individuale, intreprinderilor familiale şi a societăţilor cu mai puţin de 2 ani fiscali.  (Anexa 6.3  din Ghidul solicitantului)"]
["DOC. 18. Declaraţie pe propria răspundere a solicitantului ca nu a beneficiat de servicii de consiliere prin M-02 (Anexa 12  din Ghidul solicitantului)"]
["DOC. 19. Declaratie expert contabil din care sa reiasa că solicitantul in anul precedent depunerii cererii de finanare a obtinut venituri din exploatare iar veniturile din activitățile agricole reprezintă cel puțin 50% din total venituri din exploatare ale solicitantului. (dacă este cazul)"]
["DOC. 20. Document emis de DSP județeană conform tipurilor de documente mentionate în protocolul de colaborare dintre AFIR și Ministerul Sănătății.          ( dacă este cazul)"]
["DOC. 21. Document emis de DSVSA, conform Protocolului de colaborare dintre AFIR şi ANSVSA publicat pe pagina de internet www.afir.info (dacă este cazul)"]
["DOC. 22. Certificat de cazier fiscal al solicitantului (în original)"]
["DOC. 23. Declaraţie prin care beneficiarul se angajează să raporteze către GAL toate plăţile autorizate şi rambursate în cadrul proiectului selectat, ce vor fi efectuate de AFIR către beneficiar.( Anexa 11 din Ghidul solicitantului)"]
["DOC. 24. Declarație pe propria răspundere că nu este înregistrat cu datorii în registrul debitorilor AFIR (se va verifica prin solicitare de informații de la AFIR în perioada de evaluare a proiectului)."]
["DOC. 25. Extras de carte funciară (dacă este cazul)"]
["DOC. 26. Declarație de consimtământ privind prelucrarea datelor cu caracter personal  (Anexa 13  din Ghidul solicitantului)"]
["DOC 27. Angajament pe propria răspundere privind utilizarea cofinanțării private  (Anexa 14  din Ghidul solicitantului)"]
["DOC. 28. Alte documente justificative (se vor specifica după caz)."]
[]
[]
[]
[]
[]
[]
[]
[]
[]
[]
["F. DECLARAŢIE PE PROPRIA RĂSPUNDERE A SOLICITANTULUI"]
["(nebifarea unei căsuțe din partea F a cererii de finanțare, dacă proiectul impune, constituie eroare de fond, situație în care proiectul este declarat neeligibil)"]
["Prin această declaraţie solicitantul"]
[]
["care solicită asistență financiară nerambursabilă prin programul FEADR pentru proiectul intitulat"]
[]
["prin reprezentant legal"]
[]
["cunoscând prevederile legii penale cu privire la falsul în declarații:"]
["1. Declar că proiectul propus asistenței financiare nerambursabile FEADR nu beneficiază de altă finanțare din\nprograme de finanțare nerambursabilă."]
["De asemenea mă angajez ca în cazul în care proiectul va fi selectat pentru finanțare FEADR, nu voi depune acest\nproiect la nici un alt program de finanțare nerambursabilă la care proiectul poate fi în întregime sau parțial eligibil\npentru asistență."]
["2. Declar pe propria răspundere că îndeplinesc condiţiile minime de acordare a sprijinului prevăzute în fişa măsurii şi ghidul solicitantului şi mă angajez să le respect pe perioada de valabilitate a contractului de finanţare şi monitorizare a proiectului, inclusiv criteriile de selecţie pentru care am fost punctat."]
["3. Declar pe propria răspundere că toate informaţiile din prezenta cerere de finanţare şi din documentele anexate sunt corecte şi mă angajez să respect condiţiile cerute în reglementările referitoare la prezentul program şi pe cele legate de Studiul de fezabilitate şi să furnizez periodic, la cerere, documente justificative necesare."]
["4. Declar pe propria răspundere că orice modificări aduse dreptului de proprietate sau de folosinţă vor fi notificate AFIR în termen de trei zile de la data incheierii lor. De asemenea, mă angajez, ca pe perioada de valabilitate a contractului de finanţare şi monitorizare a proiectului să nu diminuez suprafaţa şi/sau infrastructura cuprinsă în proiect."]
["5. Declar că eu și organizația mea (asociație sau intreprindere) nu suntem într-unul din următoarele cazuri:"]
[null,null,null,"Acuzat din cauza unei greșeli privind conduita profesională având ca soluție finală res judicata (împotriva căreia nici un apel nu este posibil)"]
[null,null,null,"Vinovat de grave deficiențe de conduită profesională dovedite prin orice mijloace pe care Agenția le poate justifica."]
[null,null,null,"Vinovat de faptul că nu am prezentat informaţiile cerute de Autoritatea Contractantă ca o condiţie de participare la licitaţie sau contractare"]
[null,null,null,"Încălcarea prevederilor contractuale prin care nu mi-am îndeplinit obligațiile contractuale în legătură cu un alt contract cu Agenția sau alte contracte finanțate din fonduri comunitare."]
[null,null,null,"Încercarea de a obține informații confidențiale sau de influențare a Agenției în timpul procesului de evaluare a proiectului și nu voi face presiuni la adresa evaluatorului."]
["6.",null,null,null,null,"Declar că organizaţia pe care o reprezint ARE datorii către instituţii de credit şi/sau institutii financiare bancare/nebancare pentru care prezint graficul de rambursare."]
["7.",null,null,null,null,"Declar că organizația pe care o reprezint NU are datorii către instituții de credit şi/sau instituții financiare\nnebancare."]
["8.",null,null,null,null,"Declar pe propria răspundere că:"]
[null,null,null,null,null,"Nu sunt înregistrat în scopuri TVA și că mă angajez să notific Agenției orice modificare a situatiei privind înregistrarea ca plătitor de TVA, în maximum 10 (zece) zile de la data înregistrării în scopuri TVA."]
[null,null,null,null,null,"Sunt înregistrat în scopuri de TVA (certificat de înregistrare fiscală în scopuri de TVA)."]
["9.1",null,null,null,null,"Declar pe propria răspundere că nu am înscrieri care privesc sancțiuni economico-financiare în cazierul\njudiciar pe care mă oblig să îl depun la încheierea contractului de finanțare."]
["9.2",null,null,null,null,"Declar pe propria răspundere că reprezentantul legal nu are înscrieri privind sancţiuni economico-financiare în certificatul de cazier judiciar - persoană fizică, pe care mă oblig să-l depun la încheierea contractului de finanțare"]
["10.",null,null,null,null,"Declar pe propria răspundere că nu am fapte înscrise în cazierul fiscal pe care mă oblig să îl depun la încheierea contractului de finanţare."]
["11.",null,null,null,null,"Declar pe propria răspundere că voi deschide punct de lucru în spaţiul rural, cu codul CAEN al activităţii pentru care solicită finanţare, când voi îndeplini condiţiile, conform legislaţiei în vigoare (pentru investiţii noi, dacă este cazul)."]
["12.",null,null,null,null,"Mă angajez că la momentul finalizării agro-pensiunii, aceasta va fi introdusă în circuitul turistic (în cazul proiectelor care prevăd agropensiuni)."]
["13.",null,null,null,null,"Declar pe proprie răspundere că investiţia finanţată va deservi exclusiv interesele economice ale acestuia (beneficiarului proiectului) în scopul obţinerii de profit propriu."]
["14.",null,null,null,null,"Declar pe propria răspundere că nivelul de confort şi calitatea serviciilor propuse prin proiect vor atinge standardul de calitate de minimum o margaretă (în cazul proiectelor care prevăd agropensiuni)."]
["15.",null,null,null,null,"Declaraţie pe propria raspundere că modernizarea structurii de primire turistica va presupune in mod obligatoriu cresterea nivelului de confort cu cel putin o margareta (în cazul proiectelor care prevăd agropensiuni)"]
["16.",null,null,null,null,"Declar pe propria răspundere că toate cheltuielile neeligibile vor fi suportate de solicitant şi că acestea vor fi realizate până la finalizarea proiectului."]
["17.",null,null,null,null,"Ma angajez ca in termenul prevazut in “Notificarea beneficiarului privind selectarea cererii de finanatare si semnarea contractului de finantare” sa prezint documentul privind cofinantarea proiectului si Angajamentul responsabilului legal al proiectului ca nu va utiliza in alte scopuri 50% din cofinantarea privata, in cazul prezentarii cofinantarii prin extras de cont."]
["18.",null,null,null,null,"Declar pe propria răspundere că în cazul în care nu respect oricare din punctele prevăzute în această declaraţie, proiectul să devină neeligibil în baza criteriului \"Eligibilitatea solicitantului\" sau contractul să fie reziliat."]
["19.",null,null,null,null,"Declar pe propria răspundere ca nu sunt în insolventă sau incapacitate de plată."]
["20.",null,null,null,null,"Accept publicarea pe site-ul AFIR a datelor mele, cu respectarea legislaţiei naţionale şi europene privind transparenţa."]
["21.",null,null,null,null,"Sunt de acord ca AFIR să consulte și să prelucreze, prin operațiunile prevăzute de legislația în vigoare în vederea desfășurării activității specifice, datele mele cu caracter personal, furnizate AFIR."]
["22.",null,null,null,null,"Declar pe propria răspundere că nici unul dintre asociați / acționari nu a desfășurat aceeași activitate sau activități complementare cu activitatea/activitățile aferentă/aferente codului/codurilor CAEN propus/propuse în cererea de finanțare, sub nicio formă de organizare autorizată."]
["23.",null,null,null,null,"Declar pe propria răspundere că asociații/acționarii mei nu dețin părți sociale în cadrul altor întreprinderi care își desfășoară activitatea în baza aceluiași/acelorași cod/coduri CAEN autorizat/autorizate la ONRC, ca și cel/cele propus/propuse prin Studiul de Fezabilitate sau a unor coduri CAEN complementare acestuia/acestora, autorizate."]
["Semnătura reprezentant legal şi ştampila",null,null,null,null,null,null,null,null,null,null,null,null,null,null,null,null,null,null,null,null,null,null,null,null,null,null,null,null,null,null,null,null,null,null,null,null,null,null,null,null," Data:"]
[]
[]
["Anexa INDICATORI DE MONITORIZARE"]
["Măsura 3/6A - Investiţii în activităţi non-agricole"]
["1. Număr locuri de muncă"]
["2. Contribuie la Prioritatea 6"]
["Indic. nr. 1 - se va completa numărul de locuri de muncă create\nIndic. nr. 2 - se va bifa dacă contribuie la Prioritatea 6"]
[]
["Factori de risc"]
["I1. Valoarea sprijinului public nerambursabil (EURO)",null,null,null,null,null,null,null,null,null,null,null,null,null,null,null,null,null,null,null,null,null,null,null,null,null,null,null,null,null,null,null,null,null,null,null,null,null,null,null,null,3,null,null,null,null,null,null,null,null,null,"Punctaj obţinut"]
["•",null,"proiecte cu valoarea sprijinului nerambursabil între 100.001 → 200.000 euro",null,null,null,null,null,null,null,null,null,null,null,null,null,null,null,null,null,null,null,null,null,null,null,null,null,null,null,null,null,null,null,null,null,null,null,null,null,null,null,null,null,null,null,null,null,null,null,null,3]
["•",null,"proiecte cu valoarea sprijinului nerambursabil între 50.001 → 100.000 euro",null,null,null,null,null,null,null,null,null,null,null,null,null,null,null,null,null,null,null,null,null,null,null,null,null,null,null,null,null,null,null,null,null,null,null,null,null,null,5,null,null,null,null,null,null,null,null,null,2]
["•",null,"proiecte cu valoarea sprijinului nerambursabil între 5.000 → 50.000 euro",null,null,null,null,null,null,null,null,null,null,null,null,null,null,null,null,null,null,null,null,null,null,null,null,null,null,null,null,null,null,null,null,null,null,null,null,null,null,null,null,null,null,null,null,null,null,null,null,1]
[]
["I2. Complexitatea investitiei",null,null,null,null,null,null,null,null,null,null,null,null,null,null,null,null,null,null,null,null,null,null,null,null,null,null,null,null,null,null,null,null,null,null,null,null,null,null,null,null,5]
["•",null,"Modernizări cu construcţie şi/sau montaj",null,null,null,null,null,null,null,null,null,null,null,null,null,null,null,null,null,null,null,null,null,null,null,null,null,null,null,null,null,null,null,null,null,null,null,null,null,null,null,null,null,null,null,null,null,null,null,null,5]
["•",null,"Modernizări prin achiziţie utilaje",null,null,null,null,null,null,null,null,null,null,null,null,null,null,null,null,null,null,null,null,null,null,null,null,null,null,null,null,null,null,null,null,null,null,null,null,null,null,null,null,null,null,null,null,null,null,null,null,4]
["•",null,"Investiție nouă",null,null,null,null,null,null,null,null,null,null,null,null,null,null,null,null,null,null,null,null,null,null,null,null,null,null,null,null,null,null,null,null,null,null,null,null,null,null,null,null,null,null,null,null,null,null,null,null,3]
[]
["I3. Intensitatea sprijinului",null,null,null,null,null,null,null,null,null,null,null,null,null,null,null,null,null,null,null,null,null,null,null,null,null,null,null,null,null,null,null,null,null,null,null,null,null,null,null,null,5]
[null,null,0.9,null,null,null,null,null,null,null,null,null,null,null,null,null,null,null,null,null,null,null,null,null,null,null,null,null,null,null,null,null,null,null,null,null,null,null,null,null,null,null,null,null,null,null,null,null,null,null,null,5]
[null,null,0.7,null,null,null,null,null,null,null,null,null,null,null,null,null,null,null,null,null,null,null,null,null,null,null,null,null,null,null,null,null,null,null,null,null,null,null,null,null,null,null,null,null,null,null,null,null,null,null,null,4]
[]
["I4. Riscul proiectului privind raportul între cheltuielile suportate de solicitant şi Valoarea ajutorului nerambursabil",null,null,null,null,null,null,null,null,null,null,null,null,null,null,null,null,null,null,null,null,null,null,null,null,null,null,null,null,null,null,null,null,null,null,null,null,null,null,null,null,5,null,null,null,null,null,null,null,null,null,"Punctaj obţinut"]
["•",null,">200%",null,null,null,null,null,null,null,null,null,null,null,null,null,null,null,null,null,null,null,null,null,null,null,null,null,null,null,null,null,null,null,null,null,null,null,null,null,null,null,null,null,null,null,null,null,null,null,null,5]
["•",null,"Între 176 și 200%",null,null,null,null,null,null,null,null,null,null,null,null,null,null,null,null,null,null,null,null,null,null,null,null,null,null,null,null,null,null,null,null,null,null,null,null,null,null,null,null,null,null,null,null,null,null,null,null,4]
["•",null,"Între 151 și 175%",null,null,null,null,null,null,null,null,null,null,null,null,null,null,null,null,null,null,null,null,null,null,null,null,null,null,null,null,null,null,null,null,null,null,null,null,null,null,null,null,null,null,null,null,null,null,null,null,3]
["•",null,"Între 121 și 150%",null,null,null,null,null,null,null,null,null,null,null,null,null,null,null,null,null,null,null,null,null,null,null,null,null,null,null,null,null,null,null,null,null,null,null,null,null,null,null,null,null,null,null,null,null,null,null,null,2]
["•",null,"< 120%",null,null,null,null,null,null,null,null,null,null,null,null,null,null,null,null,null,null,null,null,null,null,null,null,null,null,null,null,null,null,null,null,null,null,null,null,null,null,4,null,null,null,null,null,null,null,null,null,1]
[]
["I5. Capacitatea societăţii de a manageria proiectul, experienţa în derularea afacerilor",null,null,null,null,null,null,null,null,null,null,null,null,null,null,null,null,null,null,null,null,null,null,null,null,null,null,null,null,null,null,null,null,null,null,null,null,null,null,null,null,5,null,null,null,null,null,null,null,null,null,"Punctaj obţinut"]
["•",null,"Firmă nouă sau fără activitate",null,null,null,null,null,null,null,null,null,null,null,null,null,null,null,null,null,null,null,null,null,null,null,null,null,null,null,null,null,null,null,null,null,null,null,null,null,null,null,null,null,null,null,null,null,null,null,null,5]
["•",null,"Firmă cu experienţă dar care nu a participat la alt proiect comunitar sau nu a obţinut asistenţă financiară nerambursabilă din partea altui instrument financiar",null,null,null,null,null,null,null,null,null,null,null,null,null,null,null,null,null,null,null,null,null,null,null,null,null,null,null,null,null,null,null,null,null,null,null,null,null,null,null,null,null,null,null,null,null,null,null,null,4]
["•",null,"Firmă cu experienţă care a finalizat un proiect comunitar sau a obţinut din asistenţă financiară nerambursabilă din partea altui instrument financiar",null,null,null,null,null,null,null,null,null,null,null,null,null,null,null,null,null,null,null,null,null,null,null,null,null,null,null,null,null,null,null,null,null,null,null,null,null,null,null,null,null,null,null,null,null,null,null,null,3]
["TOTAL",null,null,null,null,null,null,null,null,null,null,null,null,null,null,null,null,null,null,null,null,null,null,null,null,null,null,null,null,null,null,null,null,null,null,null,null,null,null,null,null,null,null,null,null,null,null,null,null,null,null,{"$f":"AP569*0.3+AP574*0.25+AP579*0.2+AP583*0.15+AP590*0.1","v":4.4000000000000004}]
["Pentru selectarea cererilor de finanţare ce vor fi verificate se va determina riscul fiecărui proiect folosind un număr de 5 factori de risc (I1, I2, I3, I4, I5). Pentru fiecare proiect se va determina punctajul fiecărui factor de risc pe o scară de la 1 la 5."]
["Factori de risc",null,null,null,null,null,null,null,null,null,null,null,null,null,null,null,null,null,null,null,null,null,null,null,null,null,null,null,null,null,null,null,null,null,null,null,null,null,null,null,null,null,null,null,null,null,null,null,null,null,null,5]
["I1. Activitatea desfășurată înainte de depunerea cererii de finanțare",null,null,null,null,null,null,null,null,null,null,null,null,null,null,null,null,null,null,null,null,null,null,null,null,null,null,null,null,null,null,null,null,null,null,null,null,null,null,null,null,"Factor\nîndeplinit",null,null,null,null,null,null,null,null,null,"Punctaj obţinut"]
[null,null,"Firma a desfăşurat activităţi non-agricole",null,null,null,null,null,null,null,null,null,null,null,null,null,null,null,null,null,null,null,null,null,null,null,null,null,null,null,null,null,null,null,null,null,null,null,null,null,null,null,null,null,null,null,null,null,null,null,null,1]
[null,null,"Firma a desfăşurat activităţi agricole",null,null,null,null,null,null,null,null,null,null,null,null,null,null,null,null,null,null,null,null,null,null,null,null,null,null,null,null,null,null,null,null,null,null,null,null,null,null,null,null,null,null,null,null,null,null,null,null,3]
[null,null,"Firma nu a mai desfăşurat activitate",null,null,null,null,null,null,null,null,null,null,null,null,null,null,null,null,null,null,null,null,null,null,null,null,null,null,null,null,null,null,null,null,null,null,null,null,null,null,null,null,null,null,null,null,null,null,null,null,5]
[null,null,null,null,null,null,null,null,null,null,null,null,null,null,null,null,null,null,null,null,null,null,null,null,null,null,null,null,null,null,null,null,null,null,null,null,null,null,null,null,null,null,null,null,null,null,null,null,null,null,null,5]
["I2. Activități propuse prin Studiul de Fezabilitate",null,null,null,null,null,null,null,null,null,null,null,null,null,null,null,null,null,null,null,null,null,null,null,null,null,null,null,null,null,null,null,null,null,null,null,null,null,null,null,null,"Factor\nîndeplinit",null,null,null,null,null,null,null,null,null,"Punctaj obţinut"]
[null,null,"Prestări servicii",null,null,null,null,null,null,null,null,null,null,null,null,null,null,null,null,null,null,null,null,null,null,null,null,null,null,null,null,null,null,null,null,null,null,null,null,null,null,null,null,null,null,null,null,null,null,null,null,5]
[null,null,"Producție",null,null,null,null,null,null,null,null,null,null,null,null,null,null,null,null,null,null,null,null,null,null,null,null,null,null,null,null,null,null,null,null,null,null,null,null,null,null,null,null,null,null,null,null,null,null,null,null,3]
[null,null,null,null,null,null,null,null,null,null,null,null,null,null,null,null,null,null,null,null,null,null,null,null,null,null,null,null,null,null,null,null,null,null,null,null,null,null,null,null,null,null,null,null,null,null,null,null,null,null,null,5]
["I3. Numar obiective propuse in Studiul de Fezabilitate",null,null,null,null,null,null,null,null,null,null,null,null,null,null,null,null,null,null,null,null,null,null,null,null,null,null,null,null,null,null,null,null,null,null,null,null,null,null,null,null,"Factor\nîndeplinit",null,null,null,null,null,null,null,null,null,"Punctaj obţinut"]
[null,null,"5 Obiective",null,null,null,null,null,null,null,null,null,null,null,null,null,null,null,null,null,null,null,null,null,null,null,null,null,null,null,null,null,null,null,null,null,null,null,null,null,null,null,null,null,null,null,null,null,null,null,null,2]
[null,null,"4 Obiective",null,null,null,null,null,null,null,null,null,null,null,null,null,null,null,null,null,null,null,null,null,null,null,null,null,null,null,null,null,null,null,null,null,null,null,null,null,null,null,null,null,null,null,null,null,null,null,null,3]
[null,null,"3 Obiective",null,null,null,null,null,null,null,null,null,null,null,null,null,null,null,null,null,null,null,null,null,null,null,null,null,null,null,null,null,null,null,null,null,null,null,null,null,null,null,null,null,null,null,null,null,null,null,null,4]
[null,null,"2 Obiective",null,null,null,null,null,null,null,null,null,null,null,null,null,null,null,null,null,null,null,null,null,null,null,null,null,null,null,null,null,null,null,null,null,null,null,null,null,null,null,null,null,null,null,null,null,null,null,null,5]
["TOTAL",null,null,null,null,null,null,null,null,null,null,null,null,null,null,null,null,null,null,null,null,null,null,null,null,null,null,null,null,null,null,null,null,null,null,null,null,null,null,null,null,null,null,null,null,null,null,null,null,null,null,{"$f":"AZ596*0.3+AZ601*0.3+AZ605*0.4","v":5}]
[]
["Pentru selectarea cererilor de finanţare ce vor fi verificate se va determina riscul fiecărui proiect folosind un număr de 3\nfactori de risc (I1, I2, I3).\nPentru fiecare proiect se va determina punctajul fiecărui factor de risc pe o scară de la 1 la 5."]
[]
[]
[]
["Codul unic de inregistrare APIA"]
["In cazul in care nu aveti un cod unic de inregistrare APIA, completati acest formular."]
["FORMULAR"]
[]
["Programului naţional de dezvoltare rurală 2014 - 2020"]
[]
["Denumire solicitant:"]
[]
["Categorie Solicitant:"]
[]
["Sediul / Adresa"]
[]
["Ţara",null,null,null,null,"România",null,null,null,null,null,null,null,null,"Judeţul",null,null,null,null,null,null,null,null,null,null,null,null,null,null,null,null,null,null,"oraşul"]
[]
["comuna",null,null,null,null,null,null,null,null,null,null,null,null,null,null,null,null,null,null,null,null,"satul",null,null,null,null,null,null,null,null,null,null,null,null,null,null,null,null,null,"strada"]
[]
["nr.",null,null,null,null,null,null,null,"bl.",null,null,null,null,null,"et.",null,null,null,null,"ap.",null,null,null,null,null,"sectorul",null,null,null,null,null,null,null,null,null,null,null,null,"codul poştal"]
[]
["Număr de telefon",null,null,null,null,null,null,null,null,null,null,null,null,null,null,null,null,null,null,null,null,null,null,"Fax",null,null,null,null,null,null,null,null,null,null,null,null,null,null,"E-mail"]
[]
["Număr de înregistrare în registrul comerțului/Registrul asociațiilor și fundațiilor"]
[]
["CUI / CIF"]
[]
["Cod CAEN pentru activitatea principală"]
[]
["Cod CAEN pentru activitatea secundară pentru care se solicită înregistrarea în Registrul unic de identificare"]
[]
["Cod IBAN"]
[]
["deschis la Banca"]
[]
["Sucursala / Agenție"]
[]
["Prin reprezentant legal, doamna/domnul"]
[]
["cu CNP",null,null,null,null,null,null,null,null,null,null,null,null,null,null,"solicit înscrierea în Registrul unic de identificare - Agenţia de Plăţi şi Intervenţie pentru Agricultură."]
[]
["Am luat la cunoştinţă că orice modificare a informaţiilor de mai sus trebuie furnizată către APIA în termen de maximum 10 zile\nlucrătoare de la producerea acestora.\nDeclar pe propria răspundere că cele de mai sus sunt conforme cu realitatea.\nSunt de acord ca datele din cerere să fie introduse în baza de date a Sistemului Integrat de Administrare şi Control, procesate şi\nverificate în vederea înscrierii în Registrul unic de identificare şi transmise autorităţilor responsabile în vederea elaborării de studii\nstatistice şi de evaluări economice, în condiţiile Legii nr. 190/2018 cu privire la prelucrarea datelor cu\ncaracter personal."]
[]
["Reprezentant legal",null,null,null,null,null,null,null,null,null,null,null,null,null,null,null,null,null,null,null,null,null,null,null,null,null,null,null,null,null,null,null,null,null,null,null,null,null,null,null,null,null,null,"Data:"]
[]
["Numele şi prenumele"]
["Semnătura "]

{"sheet":"Anexa 1","index":1,"n_rows":48,"n_cols":52,"rows_kept":48,"cut":false,"hidden":false,"merged":[[46,0,46,3],[46,4,46,41],[46,42,46,50],[46,51,46,60],[47,0,47,41],[47,42,47,60],[43,0,43,3],[43,4,43,41],[43,42,43,50],[43,51,43,60],[44,0,44,3],[44,4,44,41],[44,42,44,50],[44,51,44,60],[45,0,45,3],[45,4,45,41],[45,42,45,50],[45,51,45,60],[40,0,40,3],[40,4,40,41],[40,42,40,50],[40,51,40,60],[41,0,41,3],[41,4,41,41],[41,42,41,50],[41,51,41,60],[42,0,42,3],[42,4,42,41],[42,42,42,50],[42,51,42,60],[37,0,37,3],[37,4,37,41],[37,42,37,50],[37,51,37,60],[38,0,38,3],[38,4,38,41],[38,42,38,50],[38,51,38,60],[39,0,39,3],[39,4,39,41],[39,42,39,50],[39,51,39,60],[34,0,34,3],[34,4,34,41],[34,42,34,50],[34,51,34,60],[35,0,35,3],[35,4,35,41],[35,42,35,50],[35,51,35,60],[36,0,36,3],[36,4,36,41],[36,42,36,50],[36,51,36,60],[31,0,31,3],[31,4,31,41],[31,42,31,50],[31,51,31,60],[32,0,32,3],[32,4,32,41],[32,42,32,50],[32,51,32,60],[33,0,33,3],[33,4,33,41],[33,42,33,50],[33,51,33,60],[28,0,28,3],[28,4,28,41],[28,42,28,50],[28,51,28,60],[29,0,29,3],[29,4,29,41],[29,42,29,50],[29,51,29,60],[30,0,30,3],[30,4,30,41],[30,42,30,50],[30,51,30,60],[25,0,25,3],[25,4,25,41],[25,42,25,50],[25,51,25,60],[26,0,26,3],[26,4,26,41],[26,42,26,50],[26,51,26,60],[27,0,27,3],[27,4,27,41],[27,42,27,50],[27,51,27,60],[22,0,22,3],[22,4,22,41],[22,42,22,50],[22,51,22,60],[23,0,23,3],[23,4,23,41],[23,42,23,50],[23,51,23,60],[24,0,24,3],[24,4,24,41],[24,42,24,50],[24,51,24,60],[19,0,19,3],[19,4,19,41],[19,42,19,50],[19,51,19,60],[20,0,20,3],[20,4,20,41],[20,42,20,50],[20,51,20,60],[21,0,21,3],[21,4,21,41],[21,42,21,50],[21,51,21,60],[16,0,16,3],[16,4,16,41],[16,42,16,50],[16,51,16,60],[17,0,17,3],[17,4,17,41],[17,42,17,50],[17,51,17,60],[18,0,18,3],[18,4,18,41],[18,42,18,50],[18,51,18,60],[13,0,13,3],[13,4,13,41],[13,42,13,50],[13,51,13,60],[14,0,14,3],[14,4,14,41],[14,42,14,50],[14,51,14,60],[15,0,15,3],[15,4,15,41],[15,42,15,50],[15,51,15,60],[10,0,10,3],[10,4,10,41],[10,42,10,50],[10,51,10,60],[11,0,11,3],[11,4,11,41],[11,42,11,50],[11,51,11,60],[12,0,12,3],[12,4,12,41],[12,42,12,50],[12,51,12,60],[7,0,7,60],[8,0,8,3],[8,4,8,41],[8,42,8,50],[8,51,8,60],[9,0,9,3],[9,4,9,41],[9,42,9,50],[9,51,9,60],[0,7,0,41],[1,7,1,41],[1,42,2,60],[2,7,2,41],[3,7,3,41],[4,7,4,60],[5,0,5,60],[6,0,6,60],[3,42,3,57]]}
[50,null,null,null,null,null,null,"MINISTERUL AGRICULTURII ŞI DEZVOLTĂRII RURALE"]
[null,null,null,null,null,null,null,null,null,null,null,null,null,null,null,null,null,null,null,null,null,null,null,null,null,null,null,null,null,null,null,null,null,null,null,null,null,null,null,null,null,null,"Anexa A1\nHG 907/2016"]
[null,null,null,null,null,null,null,"AGENŢIA PENTRU FINANŢAREA INVESTIŢIILOR RURALE"]
[null,null,null,null,null,null,null,null,null,null,null,null,null,null,null,null,null,null,null,null,null,null,null,null,null,null,null,null,null,null,null,null,null,null,null,null,null,null,null,null,null,null,"GAL Ţara Vrancei 2019"]
[null,null,null,null,null,null,null,"Deviz financiar- Capitolul 3 - Cheltuieli pentru proiectare şi asistenţa tehnică - EURO"]
[]
[]
["(Titlu deviz)"]
["Nr.crt",null,null,null,"Specificaţie",null,null,null,null,null,null,null,null,null,null,null,null,null,null,null,null,null,null,null,null,null,null,null,null,null,null,null,null,null,null,null,null,null,null,null,null,null,"Valoare eligibilă",null,null,null,null,null,null,null,null,"Valoare\nneeligibilă"]
["3.1",null,null,null,"Cheltuieli pentru studii - total din care:",null,null,null,null,null,null,null,null,null,null,null,null,null,null,null,null,null,null,null,null,null,null,null,null,null,null,null,null,null,null,null,null,null,null,null,null,null,{"$f":"SUM(AQ11:AY13)","v":0},null,null,null,null,null,null,null,null,{"$f":"SUM(AZ11:BI13)","v":0}]
[null,null,null,null,"3.1.1 Studii de teren: geotehnice, geologice, hidrologice, hidrogeotehnice, fotogrammetrice, topografice şi de stabilitate ale terenului pe care se amplasează obiectivul de investiţie"]
[null,null,null,null,"3.1.2 Raport privind impactul asupra mediului"]
[null,null,null,null,"3.1.3 Studii de specialitate necesare în funcție de specificul investiției"]
["3.2",null,null,null,"Documentaţii-suport şi cheltuieli pentru obţinerea de avize, acorduri şi autorizaţii",null,null,null,null,null,null,null,null,null,null,null,null,null,null,null,null,null,null,null,null,null,null,null,null,null,null,null,null,null,null,null,null,null,null,null,null,null,{"$f":"SUM(AQ15:AY23)","v":0},null,null,null,null,null,null,null,null,{"$f":"SUM(AZ15:BI23)","v":0}]
[null,null,null,null,"1. obţinerea/prelungirea valabilităţii ceritificatului de urbanism"]
[null,null,null,null,"2. obţinerea/prelungirea valabilităţii autorizaţiei de construire/desfiinţare"]
[null,null,null,null,"3. obţinerea avizelor şi acordurilor pentru racorduri şi branşamente la reţelele publice de alimentare cu apă, canalizare, alimentare cu gaze, alimentare cu agent termic, energie electrică, telefonie"]
[null,null,null,null,"4. obţinerea certificatului de nomenclatură stradală şi adresa"]
[null,null,null,null,"5. întocmirea documentaţiei, obţinerea numărului cadastral provizoriu şi înregistrarea terenului în cartea funciară"]
[null,null,null,null,"6. obținerea actului administrativ al autorității competente pentru protecția mediului"]
[null,null,null,null,"7. obţinerea avizului de protecție civilă"]
[null,null,null,null,"8. avizul de specialitate în cazul obiectivelor de patrimoniu"]
[null,null,null,null,"9. alte avize, acorduri şi autorizaţii"]
["3.3",null,null,null,"Cheltuieli pentru expertizarea tehnică a construcţiilor existente, a structurilor şi/sau, după caz, a proiectelor tehnice, inclusiv întocmirea de către expertul tehnic a raportului de expertiză tehnică"]
["3.4",null,null,null,"Cheltuieli pentru certificarea performanţei energetice şi auditul energetic al\nclădirilor"]
["3.5",null,null,null,"Cheltuieli pentru proiectare",null,null,null,null,null,null,null,null,null,null,null,null,null,null,null,null,null,null,null,null,null,null,null,null,null,null,null,null,null,null,null,null,null,null,null,null,null,{"$f":"SUM(AQ27:AY32)","v":0},null,null,null,null,null,null,null,null,{"$f":"SUM(AZ27:BI32)","v":0}]
[null,null,null,null,"3.5.1 Temă de proiectare"]
[null,null,null,null,"3.5.2 Studiu de prefezabilitate"]
[null,null,null,null,"3.5.3. Studiu de prefezabilitate/documentație de avizare a lucrărilor de intervenții și deviz general"]
[null,null,null,null,"3.5.4. Documentațiile tehnice necesare în vederea obținerii avizelor/ acordurilor/ autorizațiilor"]
[null,null,null,null,"3.5.5. Verificarea tehnică de calitate a proiectului tehnic și a detaliilor de execuție"]
[null,null,null,null,"3.5.6. Proiect tehnic și detalii de execuție"]
["3.6",null,null,null,"Cheltuieli aferente organizării şi derulării procedurilor de achiziţii publice",null,null,null,null,null,null,null,null,null,null,null,null,null,null,null,null,null,null,null,null,null,null,null,null,null,null,null,null,null,null,null,null,null,null,null,null,null,null,null,null,null,null,null,null,null,null,{"$f":"SUM(AZ34:BI37)","v":0}]
[null,null,null,null,"1. Cheltuieli aferente întocmirii documentaţiei de atribuire şi multiplicării acesteia (exclusiv cele cumpărate de ofertanţi)"]
[null,null,null,null,"2. Cheltuieli cu onorariile, transportul, cazarea şi diurna membrilor desemnaţi în comisiile de evaluare"]
[null,null,null,null,"3. Anunţuri de intenţie, de participare şi de atribuire a contractelor, corespondenţă prin poştă, fax, poştă electronică în legătură cu procedurile de achiziţie publică"]
[null,null,null,null,"4. Cheltuieli aferente organizării şi derulării procedurilor de achiziţii publice"]
["3.7",null,null,null,"Cheltuieli pentru consultanţă",null,null,null,null,null,null,null,null,null,null,null,null,null,null,null,null,null,null,null,null,null,null,null,null,null,null,null,null,null,null,null,null,null,null,null,null,null,{"$f":"SUM(AQ39:AY40)","v":0},null,null,null,null,null,null,null,null,{"$f":"SUM(AZ39:BI40)","v":0}]
[null,null,null,null,"3.7.1 Managementul de proiect pentru obiectivul de investiţii"]
[null,null,null,null,"3.7.2 Auditul financiar"]
["3.8",null,null,null,"Cheltuieli pentru asistenţa tehnică",null,null,null,null,null,null,null,null,null,null,null,null,null,null,null,null,null,null,null,null,null,null,null,null,null,null,null,null,null,null,null,null,null,null,null,null,null,{"$f":"AQ42+AQ45","v":0},null,null,null,null,null,null,null,null,{"$f":"AZ42+AZ45","v":0}]
[null,null,null,null,"3.8.1. Asistenţă tehnică din partea proiectantului",null,null,null,null,null,null,null,null,null,null,null,null,null,null,null,null,null,null,null,null,null,null,null,null,null,null,null,null,null,null,null,null,null,null,null,null,null,{"$f":"SUM(AQ43:AY44)","v":0},null,null,null,null,null,null,null,null,{"$f":"SUM(AZ43:BI44)","v":0}]
[null,null,null,null,"1.1. pe perioada de execuţie a lucrărilor"]
[null,null,null,null,"1.2. pentru participarea proiectantului la fazele incluse în programul de control al lucrărilor de execuţie, avizat de către Inspectoratul de Stat în Construcţii"]
[null,null,null,null,"3.8.2 Dirigenţie de şantier, asigurată de personal tehnic de specialitate, autorizat"]
[null,null,null,null,"Total valoare fără TVA",null,null,null,null,null,null,null,null,null,null,null,null,null,null,null,null,null,null,null,null,null,null,null,null,null,null,null,null,null,null,null,null,null,null,null,null,null,{"$f":"AQ10+AQ14+AQ24+AQ25+AQ26+AQ33+AQ38+AQ41","v":0},null,null,null,null,null,null,null,null,{"$f":"AZ10+AZ14+AZ24+AZ25+AZ26+AZ33+AZ38+AZ41","v":0}]
[null,null,null,null,"Valoare TVA (aferentă cheltuielilor eligibile şi neeligibile)"]
["TOTAL DEVIZ FINANCIAR 1 (inclusiv TVA)",null,null,null,null,null,null,null,null,null,null,null,null,null,null,null,null,null,null,null,null,null,null,null,null,null,null,null,null,null,null,null,null,null,null,null,null,null,null,null,null,null,{"$f":"AQ46+AZ46+AQ47+AZ47","v":0}]

{"sheet":"Anexa 2","index":2,"n_rows":29,"n_cols":52,"rows_kept":29,"cut":false,"hidden":false,"merged":[[27,0,27,41],[27,42,27,50],[27,51,27,60],[28,0,28,41],[28,42,28,60],[25,0,25,3],[25,4,25,41],[25,42,25,50],[25,51,25,60],[26,0,26,41],[26,42,26,50],[26,51,26,60],[23,0,23,3],[23,4,23,41],[23,42,23,50],[23,51,23,60],[24,0,24,3],[24,4,24,41],[24,42,24,50],[24,51,24,60],[21,0,21,3],[21,4,21,41],[21,42,21,50],[21,51,21,60],[22,0,22,3],[22,4,22,41],[22,42,22,50],[22,51,22,60],[19,0,19,3],[19,4,19,41],[19,42,19,50],[19,51,19,60],[20,0,20,60],[17,0,17,60],[18,0,18,3],[18,4,18,41],[18,42,18,50],[18,51,18,60],[15,0,15,3],[15,4,15,41],[15,42,15,50],[15,51,15,60],[16,0,16,3],[16,4,16,41],[16,42,16,50],[16,51,16,60],[13,0,13,3],[13,4,13,41],[13,42,13,50],[13,51,13,60],[14,0,14,3],[14,4,14,41],[14,42,14,50],[14,51,14,60],[11,0,11,3],[11,4,11,41],[11,42,11,50],[11,51,11,60],[12,0,12,3],[12,4,12,41],[12,42,12,50],[12,51,12,60],[9,0,9,41],[9,42,9,50],[9,51,9,60],[10,0,10,41],[10,42,10,50],[10,51,10,60],[4,7,4,60],[5,0,5,60],[6,0,6,60],[7,0,7,60],[8,0,8,3],[8,4,8,41],[8,42,8,60],[0,7,0,41],[1,7,1,41],[1,42,2,60],[2,7,2,41],[3,7,3,41],[3,42,3,57]]}
[31,null,null,null,null,null,null,"MINISTERUL AGRICULTURII ŞI DEZVOLTĂRII RURALE"]
[null,null,null,null,null,null,null,null,null,null,null,null,null,null,null,null,null,null,null,null,null,null,null,null,null,null,null,null,null,null,null,null,null,null,null,null,null,null,null,null,null,null,"Anexa A2\nHG 907/2016"]
[null,null,null,null,null,null,null,"AGENŢIA PENTRU FINANŢAREA INVESTIŢIILOR RURALE"]
[null,null,null,null,null,null,null,null,null,null,null,null,null,null,null,null,null,null,null,null,null,null,null,null,null,null,null,null,null,null,null,null,null,null,null,null,null,null,null,null,null,null,"GAL Ţara Vrancei 2019"]
[null,null,null,null,null,null,null,"DEVIZ PE OBIECT *"]
[]
[]
["(Descriere obiect de construcţie)"]
["Nr. crt.",null,null,null,"Denumire",null,null,null,null,null,null,null,null,null,null,null,null,null,null,null,null,null,null,null,null,null,null,null,null,null,null,null,null,null,null,null,null,null,null,null,null,null,"Valoarea pe categorii de lucrări, fară TVA - EURO"]
["Cap. 4 + Cheltuieli pentru investiţia de bază",null,null,null,null,null,null,null,null,null,null,null,null,null,null,null,null,null,null,null,null,null,null,null,null,null,null,null,null,null,null,null,null,null,null,null,null,null,null,null,null,null,"Valoare eligibilă",null,null,null,null,null,null,null,null,"Valoare\nneeligibilă"]
["I - LUCRĂRI DE CONSTRUCŢII ŞI INSTALAŢII"]
["4.1",null,null,null,"Construcții și instalații"]
[null,null,null,null,"4.1.1 Terasamente, sistematizare pe verticală și amenajări exterioare"]
[null,null,null,null,"4.1.2 Rezistență"]
[null,null,null,null,"4.1.3 Arhitectură"]
[null,null,null,null,"4.1.4 Instalații"]
[null,null,null,null,"TOTAL I ( fără TVA)",null,null,null,null,null,null,null,null,null,null,null,null,null,null,null,null,null,null,null,null,null,null,null,null,null,null,null,null,null,null,null,null,null,null,null,null,null,{"$f":"SUM(AQ13:AY16)","v":0},null,null,null,null,null,null,null,null,{"$f":"SUM(AZ13:BI16)","v":0}]
["II - MONTAJ"]
["4.2",null,null,null,"Montaj utilaje, echipamente tehnologice și funcționale"]
[null,null,null,null,"TOTAL II ( fără TVA)",null,null,null,null,null,null,null,null,null,null,null,null,null,null,null,null,null,null,null,null,null,null,null,null,null,null,null,null,null,null,null,null,null,null,null,null,null,{"$f":"SUM(AQ19)","v":0},null,null,null,null,null,null,null,null,{"$f":"SUM(AZ19)","v":0}]
["III - PROCURARE"]
["4.3",null,null,null,"Utilaje, echipamente tehnologice și funcționale care necesită montaj"]
["4.4",null,null,null,"Utilaje, echipamente tehnologice și funcționale care nu necesită montaj și echipamente de transport"]
["4.5",null,null,null,"Dotări"]
["4.6",null,null,null,"Active necorporale"]
[null,null,null,null,"TOTAL III ( fără TVA)",null,null,null,null,null,null,null,null,null,null,null,null,null,null,null,null,null,null,null,null,null,null,null,null,null,null,null,null,null,null,null,null,null,null,null,null,null,{"$f":"SUM(AQ22:AY25)","v":0},null,null,null,null,null,null,null,null,{"$f":"SUM(AZ22:BI25)","v":0}]
["TOTAL ( TOTAL I + TOTAL II +TOTAL III) fără TVA",null,null,null,null,null,null,null,null,null,null,null,null,null,null,null,null,null,null,null,null,null,null,null,null,null,null,null,null,null,null,null,null,null,null,null,null,null,null,null,null,null,{"$f":"AQ26+AQ20+AQ17","v":0},null,null,null,null,null,null,null,null,{"$f":"AZ26+AZ20+AZ17","v":0}]
["TVA aferent cheltuielilor eligibile şi neeligibile"]
["TOTAL DEVIZ PE OBIECT (inclusiv TVA)",null,null,null,null,null,null,null,null,null,null,null,null,null,null,null,null,null,null,null,null,null,null,null,null,null,null,null,null,null,null,null,null,null,null,null,null,null,null,null,null,null,{"$f":"AQ27+AZ27+AQ28+AZ28","v":0}]

{"sheet":"Anexa 3","index":3,"n_rows":40,"n_cols":52,"rows_kept":40,"cut":false,"hidden":false,"merged":[[39,0,39,3],[39,4,39,41],[39,42,39,60],[36,0,36,3],[36,4,36,41],[36,42,36,50],[36,51,36,60],[37,0,37,3],[37,4,37,41],[37,42,37,50],[37,51,37,60],[38,0,38,3],[38,4,38,41],[38,42,38,50],[38,51,38,60],[33,0,33,3],[33,4,33,41],[33,42,33,50],[33,51,33,60],[34,0,34,3],[34,4,34,41],[34,42,34,50],[34,51,34,60],[35,0,35,3],[35,4,35,41],[35,42,35,50],[35,51,35,60],[30,0,30,3],[30,4,30,41],[30,42,30,50],[30,51,30,60],[31,0,31,3],[31,4,31,41],[31,42,31,50],[31,51,31,60],[32,0,32,3],[32,4,32,41],[32,42,32,50],[32,51,32,60],[27,0,27,3],[27,4,27,41],[27,42,27,50],[27,51,27,60],[28,0,28,3],[28,4,28,41],[28,42,28,50],[28,51,28,60],[29,0,29,3],[29,4,29,41],[29,42,29,50],[29,51,29,60],[23,0,23,60],[24,0,24,3],[24,4,24,41],[24,42,24,50],[24,51,24,60],[25,0,25,60],[26,0,26,3],[26,4,26,41],[26,42,26,50],[26,51,26,60],[20,0,20,3],[20,4,20,41],[20,42,20,50],[20,51,20,60],[21,0,21,41],[21,42,21,60],[22,0,22,3],[22,4,22,41],[22,42,22,50],[22,51,22,60],[17,0,17,3],[17,4,17,41],[17,42,17,50],[17,51,17,60],[18,0,18,3],[18,4,18,41],[18,42,18,50],[18,51,18,60],[19,0,19,3],[19,4,19,41],[19,42,19,50],[19,51,19,60],[14,0,14,3],[14,4,14,41],[14,42,14,50],[14,51,14,60],[15,0,15,3],[15,4,15,41],[15,42,15,50],[15,51,15,60],[16,0,16,3],[16,4,16,41],[16,42,16,50],[16,51,16,60],[11,0,11,3],[11,4,11,41],[11,42,11,50],[11,51,11,60],[12,0,12,3],[12,4,12,41],[12,42,12,50],[12,51,12,60],[13,0,13,3],[13,4,13,41],[13,42,13,50],[13,51,13,60],[8,0,8,60],[9,0,9,3],[9,4,9,41],[9,42,9,50],[9,51,9,60],[10,0,10,3],[10,4,10,41],[10,42,10,50],[10,51,10,60],[1,7,1,41],[1,42,2,60],[2,7,2,41],[3,7,3,41],[4,7,4,60],[5,0,5,60],[6,0,6,60],[7,0,7,60],[3,42,3,57]]}
[42]
[null,null,null,null,null,null,null,"MINISTERUL AGRICULTURII ŞI DEZVOLTĂRII RURALE",null,null,null,null,null,null,null,null,null,null,null,null,null,null,null,null,null,null,null,null,null,null,null,null,null,null,null,null,null,null,null,null,null,null,"Anexa A3\nHG 907/2016"]
[]
[null,null,null,null,null,null,null,"AGENŢIA PENTRU FINANŢAREA INVESTIŢIILOR RURALE",null,null,null,null,null,null,null,null,null,null,null,null,null,null,null,null,null,null,null,null,null,null,null,null,null,null,null,null,null,null,null,null,null,null,"GAL Ţara Vrancei 2019"]
[]
[]
[]
["(Titlu deviz)"]
["Deviz capitolul 2- Cheltuieli pentru asigurarea utilităţilor necesare obiectivului - EURO"]
["Nr.crt",null,null,null,"Specificaţie",null,null,null,null,null,null,null,null,null,null,null,null,null,null,null,null,null,null,null,null,null,null,null,null,null,null,null,null,null,null,null,null,null,null,null,null,null,"Valoare eligibilă",null,null,null,null,null,null,null,null,"Valoare\nneeligibilă"]
[1,null,null,null,"Alimentare cu apă"]
[2,null,null,null,"Canalizare"]
[3,null,null,null,"Alimentare cu gaze naturale"]
[4,null,null,null,"Alimentare cu agent termic"]
[5,null,null,null,"Alimentare cu energie electrică"]
[6,null,null,null,"Telecomunicaţii (telefonie, radio-tv,etc)"]
[7,null,null,null,"Drumuri de acces"]
[8,null,null,null,"Căi ferate industriale"]
[9,null,null,null,"Alte utilități"]
[null,null,null,null,"Total valoare fără TVA",null,null,null,null,null,null,null,null,null,null,null,null,null,null,null,null,null,null,null,null,null,null,null,null,null,null,null,null,null,null,null,null,null,null,null,null,null,{"$f":"SUM(AQ11:AY19)","v":0},null,null,null,null,null,null,null,null,{"$f":"SUM(AZ11:BI19)","v":0}]
[null,null,null,null,"Valoare TVA aferentă cheltuielilor eligibile şi neeligibile"]
["TOTAL DEVIZ CAPITOLUL 2 (inclusiv TVA)",null,null,null,null,null,null,null,null,null,null,null,null,null,null,null,null,null,null,null,null,null,null,null,null,null,null,null,null,null,null,null,null,null,null,null,null,null,null,null,null,null,{"$f":"AQ20+AZ20+AQ21+AZ21","v":0}]
[]
[" Deviz capitolul 5 - Alte cheltuieli - EURO"]
["Nr.crt",null,null,null,"Specificaţie",null,null,null,null,null,null,null,null,null,null,null,null,null,null,null,null,null,null,null,null,null,null,null,null,null,null,null,null,null,null,null,null,null,null,null,null,null,"Valoare eligibilă",null,null,null,null,null,null,null,null,"Valoare\nneeligibilă"]
[]
["5.1 ",null,null,null,"Organizare de şantier",null,null,null,null,null,null,null,null,null,null,null,null,null,null,null,null,null,null,null,null,null,null,null,null,null,null,null,null,null,null,null,null,null,null,null,null,null,{"$f":"SUM(AQ28:AY29)","v":0},null,null,null,null,null,null,null,null,{"$f":"SUM(AZ28:BI29)","v":0}]
[null,null,null,null,"5.1.1 Lucrări de construcţii şi instalaţii aferente organizării de şantier"]
[null,null,null,null,"5.1.2 Cheltuieli conexe organizării de şantier"]
["5.2",null,null,null,"Comisioane, cote, taxe, costul creditului",null,null,null,null,null,null,null,null,null,null,null,null,null,null,null,null,null,null,null,null,null,null,null,null,null,null,null,null,null,null,null,null,null,null,null,null,null,{"$f":"SUM(AQ32:AY35)","v":0},null,null,null,null,null,null,null,null,{"$f":"SUM(AZ31:BI35)","v":0}]
[null,null,null,null,"5.2.1. Comisioanele şi dobânzile aferente creditului băncii finanţatoare"]
[null,null,null,null,"5.2.2. Cota aferentă ISC pentru controlul calităţii lucrărilor de construcţii"]
[null,null,null,null,"5.2.3. Cota aferentă ISC pentru controlul statului în amenajarea teritoriului, urbanism şi pentru autorizarea lucrărilor de construcţii"]
[null,null,null,null,"5.2.4. Cota aferentă Casei Sociale a Constructorilor - CSC"]
[null,null,null,null,"5.2.5. Taxe pentru acorduri, avize conforme şi autorizaţia de construire/desfiinţare"]
["5.3",null,null,null," Cheltuieli diverse si neprevazute"]
["5.4",null,null,null," Cheltuieli pentru informare și publicitate"]
[null,null,null,null,"TOTAL DEVIZ CAPITOLUL 5",null,null,null,null,null,null,null,null,null,null,null,null,null,null,null,null,null,null,null,null,null,null,null,null,null,null,null,null,null,null,null,null,null,null,null,null,null,{"$f":"AQ27+AQ30+AQ36","v":0},null,null,null,null,null,null,null,null,{"$f":"AZ27+AZ30+AZ36+AZ37","v":0}]
[null,null,null,null,"VALOARE TVA aferentă cheltuielilor eligibile şi neeligibile"]
[null,null,null,null,"TOTAL DEVIZ CAPITOLUL 5 ( inclusiv TVA)",null,null,null,null,null,null,null,null,null,null,null,null,null,null,null,null,null,null,null,null,null,null,null,null,null,null,null,null,null,null,null,null,null,null,null,null,null,{"$f":"AQ38+AZ38+AQ39+AZ39","v":0}]

{"sheet":"Asociati","index":4,"n_rows":26,"n_cols":53,"rows_kept":26,"cut":false,"hidden":false,"merged":[[1,5,1,13],[2,17,2,58],[4,3,4,10],[4,24,4,49],[13,2,13,28],[5,3,5,16],[5,24,5,49],[9,4,9,15],[9,18,9,20],[9,21,9,26],[9,28,9,35],[9,37,9,48],[14,25,14,35],[15,3,15,22],[15,25,15,42],[15,44,15,58],[9,51,9,58],[10,4,10,6],[10,7,10,9],[10,10,10,15],[10,18,11,20],[10,21,11,26],[10,28,11,35],[10,37,11,48],[10,51,11,58],[11,4,11,6],[11,7,11,9],[11,10,11,15],[28,1,28,60],[25,29,25,51],[26,4,26,17],[26,29,26,50],[17,46,17,49],[17,52,17,57],[18,5,18,13],[21,7,21,18],[23,9,23,58],[17,3,17,10],[17,13,17,29],[17,31,17,34],[17,36,17,39],[17,41,17,44]]}
[30,"Asociați"]
[null,null,null,null,null,"Persoană Fizică: "]
[null,null,null,"Nume și prenume asociat : "]
[]
[null,null,null,"Data naşterii",null,null,null,null,null,null,null,null,null,null,null,null,null,null,null,null,null,null,null,null,"Cod numeric personal"]
[]
[]
[]
[]
[null,null,null,null,"Act de identitate",null,null,null,null,null,null,null,null,null,null,null,null,null,"Seria",null,null,"Nr.",null,null,null,null,null,null,"Eliberat la data de",null,null,null,null,null,null,null,null,"de:",null,null,null,null,null,null,null,null,null,null,null,null,null,"Valabil până la:"]
[null,null,null,null,"B.I.",null,null,"C.I.",null,null,"Paşaport"]
[]
[]
[null,null,"Adresa și domiciliul asociatului:"]
[null,null,null,"Judeţ",null,null,null,null,null,null,null,null,null,null,null,null,null,null,null,null,null,null,null,null,null,"Localitate",null,null,null,null,null,null,null,null,null,null,null,null,null,null,null,null,null,null,"Sat"]
[]
[null,null,null,"Cod Poştal",null,null,null,null,null,null,null,null,null,"Strada",null,null,null,null,null,null,null,null,null,null,null,null,null,null,null,null,null,"Nr.",null,null,null,null,"Bloc",null,null,null,null,"Scara",null,null,null,null,"Etaj",null,null,null,null,null,"Apartament"]
[]
[null,null,null,null,null,"Persoană Juridică: "]
[]
[null,null,null,null,null,null,null,"Înregistrată în România"]
[null,null,null,null,null,null,null,"Înregistrată în altă țară"]
[]
[null,null,null,"Denumire : "]
[]
[null,null,null,null,"CUI",null,null,null,null,null,null,null,null,null,null,null,null,null,null,null,null,null,null,null,null,null,null,null,null,"Nr. Inreg. ONRC"]